{"text_format":"1","workbook":"xlsx","n_sheets":3,"sheets":["Sheet1","Sheet2","Sheet3"],"not_rendered":{"charts":0,"images":0,"macros":1,"external_links":0,"defined_names":1,"comments":0,"pivot_tables":0},"unopened":[],"bounds":{"document_bytes":16777216,"sheet_cells":100000,"rows_first":2000,"rows_last":500,"rows_between":2000,"halvings":0,"cell_chars":16384,"cell_head_chars":4096},"cells_cut":0,"cells_raw":0,"read":"whole","date_system":"1900"}

{"sheet":"Sheet1","index":0,"n_rows":599,"n_cols":4,"rows_kept":599,"cut":false,"hidden":false,"merged":[]}
["Customer",null,"Customer ID"," "]
["1199 SEIU",{"$f":"A2 & REPT(\" \",(50-LEN(A2)))","v":"1199 SEIU                                         "},3262,"1199 SEIU                                         3262"]
["A&G HealthCare Services, LLC",{"$f":"A3&REPT(\" \",(50-LEN(A3)))","v":"A&G HealthCare Services, LLC                      "},1896,"A&G HealthCare Services, LLC                      1896"]
["Abrazo Health Care",{"$f":"A4&REPT(\" \",(50-LEN(A4)))","v":"Abrazo Health Care                                "},6196,{"$f":"B4&C4","v":"Abrazo Health Care                                6196"}]
["Accenture LLP - Cigna","Accenture LLP - Cigna                             ",3764,{"$f":"B5&C5","v":"Accenture LLP - Cigna                             3764"}]
["Accenture LLP- Aetna","Accenture LLP- Aetna                              ",3763,"Accenture LLP- Aetna                              3763"]
["Accuro Healthcare Solutions","Accuro Healthcare Solutions                       ",3963,"Accuro Healthcare Solutions                       3963"]
["ACS, Inc.","ACS, Inc.                                         ",1084,"ACS, Inc.                                         1084"]
["Adaptis, Inc.","Adaptis, Inc.                                     ",3443,"Adaptis, Inc.                                     3443"]
["Administrative Concepts","Administrative Concepts                           ",1088,"Administrative Concepts                           1088"]
["Administrative Services Group Inc.","Administrative Services Group Inc.                ",1090,"Administrative Services Group Inc.                1090"]
["Administrative System Research Corp.","Administrative System Research Corp.              ",1086,"Administrative System Research Corp.              1086"]
["Advance Insurance Co.","Advance Insurance Co.                             ",1099,"Advance Insurance Co.                             1099"]
["Advanced Benefit Solutions","Advanced Benefit Solutions                        ",1144,"Advanced Benefit Solutions                        1144"]
["Advanced Business Fulfillment","Advanced Business Fulfillment                     ",2016,"Advanced Business Fulfillment                     2016"]
["Advicare, Corp.","Advicare, Corp.                                   ",6215,"Advicare, Corp.                                   6215"]
["Aegon Special Markets Group","Aegon Special Markets Group                       ",1153,"Aegon Special Markets Group                       1153"]
["Aetna, Inc","Aetna, Inc                                        ",3221,"Aetna, Inc                                        3221"]
["Affinity","Affinity                                          ",3445,"Affinity                                          3445"]
["Affinity Health Plan","Affinity Health Plan                              ",2879,"Affinity Health Plan                              2879"]
["Allied Benefit Systems Inc.","Allied Benefit Systems Inc.                       ",1180,"Allied Benefit Systems Inc.                       1180"]
["Allocations","Allocations                                       ",1776,"Allocations                                       1776"]
["AlohaCare","AlohaCare                                         ",3447,"AlohaCare                                         3447"]
["Amalgamated Life Insurance Company","Amalgamated Life Insurance Company                ",1204,"Amalgamated Life Insurance Company                1204"]
["AmeraPlan, Inc.","AmeraPlan, Inc.                                   ",5432,"AmeraPlan, Inc.                                   5432"]
["America's Choice Healthplan, LLC","America's Choice Healthplan, LLC                  ",2357,"America's Choice Healthplan, LLC                  2357"]
["America's TPA","America's TPA                                     ",5436,"America's TPA                                     5436"]
["American Benefit Admin Svc Inc.","American Benefit Admin Svc Inc.                   ",1249,"American Benefit Admin Svc Inc.                   1249"]
["American Capital Insurance Co.","American Capital Insurance Co.                    ",1252,"American Capital Insurance Co.                    1252"]
["American Commercial Barge  Lines LLC","American Commercial Barge  Lines LLC              ",1255,"American Commercial Barge  Lines LLC              1255"]
["American Community Mutual Insurance Company","American Community Mutual Insurance Company       ",5675,"American Community Mutual Insurance Company       5675"]
["American Health Data Institute, Inc.","American Health Data Institute, Inc.              ",4711,"American Health Data Institute, Inc.              4711"]
["American Medical Security Inc.","American Medical Security Inc.                    ",1598,"American Medical Security Inc.                    1598"]
["American National Insurance  Co.","American National Insurance  Co.                  ",1482,"American National Insurance  Co.                  1482"]
["American Pioneer Life Insurance Co.","American Pioneer Life Insurance Co.               ",1291,"American Pioneer Life Insurance Co.               1291"]
["American Postal Workers Union Health Plan","American Postal Workers Union Health Plan         ",6195,"American Postal Workers Union Health Plan         6195"]
["American Trust Administrators, Inc.","American Trust Administrators, Inc.               ",1464,"American Trust Administrators, Inc.               1464"]
["Amerigroup Corp.","Amerigroup Corp.                                  ",1576,"Amerigroup Corp.                                  1576"]
["Amerisight, Inc.","Amerisight, Inc.                                  ",2237,"Amerisight, Inc.                                  2237"]
["APS Healthcare Inc.","APS Healthcare Inc.                               ",1379,"APS Healthcare Inc.                               1379"]
["Aptiv Technology Partners","Aptiv Technology Partners                         ",3504,"Aptiv Technology Partners                         3504"]
["Arcadian Health Plan","Arcadian Health Plan                              ",6015,"Arcadian Health Plan                              6015"]
["ARCORP, LLC (aka ARC Services)","ARCORP, LLC (aka ARC Services)                    ",5916,"ARCORP, LLC (aka ARC Services)                    5916"]
["Arkansas Blue Cross Blue Shield","Arkansas Blue Cross Blue Shield                   ",4127,"Arkansas Blue Cross Blue Shield                   4127"]
["Associated Administrators Inc.","Associated Administrators Inc.                    ",1385,"Associated Administrators Inc.                    1385"]
["Association & Society Insurance Corporation","Association & Society Insurance Corporation       ",5434,"Association & Society Insurance Corporation       5434"]
["Association Services of Washington","Association Services of Washington                ",1463,"Association Services of Washington                1463"]
["Assurant, Inc.","Assurant, Inc.                                    ",1355,"Assurant, Inc.                                    1355"]
["Aultcare Corp.","Aultcare Corp.                                    ",1465,"Aultcare Corp.                                    1465"]
["Automated Group Administration","Automated Group Administration                    ",1467,"Automated Group Administration                    1467"]
["Auxiant","Auxiant                                           ",1226,"Auxiant                                           1226"]
["Aveta, Inc","Aveta, Inc                                        ",3342,"Aveta, Inc                                        3342"]
["AvMed, Inc","AvMed, Inc                                        ",3264,"AvMed, Inc                                        3264"]
["AZ Dept. of Economic Security","AZ Dept. of Economic Security                     ",3448,"AZ Dept. of Economic Security                     3448"]
["Beacon Laboratory Benefit Solutions Inc","Beacon Laboratory Benefit Solutions Inc           ",5575,"Beacon Laboratory Benefit Solutions Inc           5575"]
["Beam Partners","Beam Partners                                     ",3242,"Beam Partners                                     3242"]
["Beech Street Corp.","Beech Street Corp.                                ",1479,"Beech Street Corp.                                1479"]
["Benefit Administrative Systems","Benefit Administrative Systems                    ",1027,"Benefit Administrative Systems                    1027"]
["Benefit Informatics, Inc.","Benefit Informatics, Inc.                         ",3623,"Benefit Informatics, Inc.                         3623"]
["Benefit Informatics, Inc. - BA","Benefit Informatics, Inc. - BA                    ",4857,"Benefit Informatics, Inc. - BA                    4857"]
["Benefit Management Systems Inc.","Benefit Management Systems Inc.                   ",1030,"Benefit Management Systems Inc.                   1030"]
["Benefit Plan Administrators-VA","Benefit Plan Administrators-VA                    ",1192,"Benefit Plan Administrators-VA                    1192"]
["Benefit Plan Management","Benefit Plan Management                           ",1040,"Benefit Plan Management                           1040"]
["Benemax","Benemax                                           ",1396,"Benemax                                           1396"]
["Benesight","Benesight                                         ",1043,"Benesight                                         1043"]
["Best Doctors","Best Doctors                                      ",1055,"Best Doctors                                      1055"]
["Beverly Enterprises, Inc.","Beverly Enterprises, Inc.                         ",1060,"Beverly Enterprises, Inc.                         1060"]
["Blue Care Network of Michigan",{"$f":"A68&REPT(\" \",(50-LEN(A68)))","v":"Blue Care Network of Michigan                     "},1073,"Blue Care Network of Michigan                     1073"]
["Blue Cross and Blue Shield of Florida","Blue Cross and Blue Shield of Florida             ",4327,{"$f":"B69&C69","v":"Blue Cross and Blue Shield of Florida             4327"}]
["Blue Cross and Blue Shield of VT","Blue Cross and Blue Shield of VT                  ",1656,"Blue Cross and Blue Shield of VT                  1656"]
["Blue Cross Blue Shield Association","Blue Cross Blue Shield Association                ",4531,"Blue Cross Blue Shield Association                4531"]
["Blue Cross Blue Shield of AL","Blue Cross Blue Shield of AL                      ",3222,"Blue Cross Blue Shield of AL                      3222"]
["Blue Cross Blue Shield of AZ","Blue Cross Blue Shield of AZ                      ",1470,"Blue Cross Blue Shield of AZ                      1470"]
["Blue Cross Blue Shield of KC","Blue Cross Blue Shield of KC                      ",1471,"Blue Cross Blue Shield of KC                      1471"]
["Blue Cross Blue Shield of LA","Blue Cross Blue Shield of LA                      ",1075,"Blue Cross Blue Shield of LA                      1075"]
["Blue Cross Blue Shield of MI","Blue Cross Blue Shield of MI                      ",1079,"Blue Cross Blue Shield of MI                      1079"]
["Blue Cross Blue Shield of MN","Blue Cross Blue Shield of MN                      ",1082,"Blue Cross Blue Shield of MN                      1082"]
["Blue Cross Blue Shield of MO","Blue Cross Blue Shield of MO                      ",1473,"Blue Cross Blue Shield of MO                      1473"]
["Blue Cross Blue Shield of MT","Blue Cross Blue Shield of MT                      ",3449,"Blue Cross Blue Shield of MT                      3449"]
["Blue Cross Blue Shield of North Carolina","Blue Cross Blue Shield of North Carolina          ",4631,"Blue Cross Blue Shield of North Carolina          4631"]
["Blue Cross Blue Shield of OK","Blue Cross Blue Shield of OK                      ",1077,"Blue Cross Blue Shield of OK                      1077"]
["Blue Cross Blue Shield of RI","Blue Cross Blue Shield of RI                      ",3843,"Blue Cross Blue Shield of RI                      3843"]
["Blue Cross Blue Shield of TN","Blue Cross Blue Shield of TN                      ",1477,"Blue Cross Blue Shield of TN                      1477"]
["Blue Cross North Eastern PA","Blue Cross North Eastern PA                       ",1098,"Blue Cross North Eastern PA                       1098"]
["Blue Cross of ID","Blue Cross of ID                                  ",1107,"Blue Cross of ID                                  1107"]
["Blue Shield of California","Blue Shield of California                         ",3201,"Blue Shield of California                         3201"]
["Boilermakers National H&W Fund","Boilermakers National H&W Fund                    ",1131,"Boilermakers National H&W Fund                    1131"]
["Boston Medical Center Health Plan","Boston Medical Center Health Plan                 ",1135,"Boston Medical Center Health Plan                 1135"]
["Bravo Health","Bravo Health                                      ",3467,"Bravo Health                                      3467"]
["Bridgestone/Firestone Inc.","Bridgestone/Firestone Inc.                        ",1151,"Bridgestone/Firestone Inc.                        1151"]
["Bristol Park Medical Management","Bristol Park Medical Management                   ",3823,"Bristol Park Medical Management                   3823"]
["CalOptima","CalOptima                                         ",1481,"CalOptima                                         1481"]
["CAM Administrative Service, Inc.","CAM Administrative Service, Inc.                  ",1513,"CAM Administrative Service, Inc.                  1513"]
["Cambia Health Solutions, Inc","Cambia Health Solutions, Inc                      ",1410,"Cambia Health Solutions, Inc                      1410"]
["Canadian Medical Network, Inc.","Canadian Medical Network, Inc.                    ",5439,"Canadian Medical Network, Inc.                    5439"]
["Capario","Capario                                           ",5437,"Capario                                           5437"]
["Capital Administrators/FHPA","Capital Administrators/FHPA                       ",1171,"Capital Administrators/FHPA                       1171"]
["Capital Blue Cross","Capital Blue Cross                                ",1174,"Capital Blue Cross                                1174"]
["Capital District Physicians Health Plan","Capital District Physicians Health Plan           ",1202,"Capital District Physicians Health Plan           1202"]
["Capital Health Plan, Inc.","Capital Health Plan, Inc.                         ",3450,"Capital Health Plan, Inc.                         3450"]
["Capstone Health Plan, Inc.","Capstone Health Plan, Inc.                        ",3451,"Capstone Health Plan, Inc.                        3451"]
["Care 1st Health Plan","Care 1st Health Plan                              ",3266,"Care 1st Health Plan                              3266"]
["Care Improvement Plus","Care Improvement Plus                             ",4266,"Care Improvement Plus                             4266"]
["Care Wisconsin Health Plan, Inc","Care Wisconsin Health Plan, Inc                   ",4383,"Care Wisconsin Health Plan, Inc                   4383"]
["Care1st Health Plan Arizona, Inc","Care1st Health Plan Arizona, Inc                  ",6017,"Care1st Health Plan Arizona, Inc                  6017"]
["CareAssist, Inc. dba The Assist Group, Inc.","CareAssist, Inc. dba The Assist Group, Inc.       ",5433,"CareAssist, Inc. dba The Assist Group, Inc.       5433"]
["CareFirst Blue Cross Blue Shield","CareFirst Blue Cross Blue Shield                  ",1179,"CareFirst Blue Cross Blue Shield                  1179"]
["Careington International Corp.","Careington International Corp.                    ",5440,"Careington International Corp.                    5440"]
["Caremark","Caremark                                          ",1534,"Caremark                                          1534"]
["Caremark Rx, LLC","Caremark Rx, LLC                                  ",5935,"Caremark Rx, LLC                                  5935"]
["CareMore Medical Enterprises","CareMore Medical Enterprises                      ",4007,"CareMore Medical Enterprises                      4007"]
["CareOregon, Inc","CareOregon, Inc                                   ",3452,"CareOregon, Inc                                   3452"]
["CareSource Inc.","CareSource Inc.                                   ",1181,"CareSource Inc.                                   1181"]
["Carpenters Health & Welfare Fund","Carpenters Health & Welfare Fund                  ",3462,"Carpenters Health & Welfare Fund                  3462"]
["Caterpillar Inc.","Caterpillar Inc.                                  ",1189,"Caterpillar Inc.                                  1189"]
["CBCA Administrators","CBCA Administrators                               ",1096,"CBCA Administrators                               1096"]
["CC Systems Corp.","CC Systems Corp.                                  ",1116,"CC Systems Corp.                                  1116"]
["CEBT","CEBT                                              ",4471,"CEBT                                              4471"]
["CECHP","CECHP                                             ",1121,"CECHP                                             1121"]
["Centene Corporation","Centene Corporation                               ",4412,"Centene Corporation                               4412"]
["CenterLight Healthcare, Inc","CenterLight Healthcare, Inc                       ",6115,"CenterLight Healthcare, Inc                       6115"]
["Central Benefits Mutual Insurance","Central Benefits Mutual Insurance                 ",1182,"Central Benefits Mutual Insurance                 1182"]
["Central Coast Alliance of Health, Inc.","Central Coast Alliance of Health, Inc.            ",5438,"Central Coast Alliance of Health, Inc.            5438"]
["Central Health Plan of CA","Central Health Plan of CA                         ",4414,"Central Health Plan of CA                         4414"]
["Central States Joint Board","Central States Joint Board                        ",1188,"Central States Joint Board                        1188"]
["Central States Welfare Fund","Central States Welfare Fund                       ",1191,"Central States Welfare Fund                       1191"]
["Chart-Tech Inc.","Chart-Tech Inc.                                   ",5493,"Chart-Tech Inc.                                   5493"]
["CHCS Services","CHCS Services                                     ",3643,"CHCS Services                                     3643"]
["Chesterfield Companies","Chesterfield Companies                            ",1976,"Chesterfield Companies                            1976"]
["Chinese Community Health Plan","Chinese Community Health Plan                     ",3803,"Chinese Community Health Plan                     3803"]
["CHP Group","CHP Group                                         ",5014,"CHP Group                                         5014"]
["Christian Care Ministry, Inc.",{"$f":"A132&REPT(\" \",(50-LEN(A132)))","v":"Christian Care Ministry, Inc.                     "},5449,"Christian Care Ministry, Inc.                     5449"]
["CIGNA","CIGNA                                             ",1856,{"$f":"B133&C133","v":"CIGNA                                             1856"}]
["CIGNA","CIGNA                                             ",2177,"CIGNA                                             2177"]
["Cincom Systems, Inc.","Cincom Systems, Inc.                              ",3766,"Cincom Systems, Inc.                              3766"]
["Citrus Health Care, Inc.","Citrus Health Care, Inc.                          ",4006,"Citrus Health Care, Inc.                          4006"]
["City of Wichita","City of Wichita                                   ",1220,"City of Wichita                                   1220"]
["ClaimCare Inc","ClaimCare Inc                                     ",6295,"ClaimCare Inc                                     6295"]
["Clarian Health Plan","Clarian Health Plan                               ",4166,"Clarian Health Plan                               4166"]
["Clear One","Clear One                                         ",4571,"Clear One                                         4571"]
["CNIC Health Solutions, Inc.","CNIC Health Solutions, Inc.                       ",1213,"CNIC Health Solutions, Inc.                       1213"]
["Co-ordinated Benefit Plans, LLC","Co-ordinated Benefit Plans, LLC                   ",5092,"Co-ordinated Benefit Plans, LLC                   5092"]
["Coalition America Inc.","Coalition America Inc.                            ",1272,"Coalition America Inc.                            1272"]
["Coast Benefit","Coast Benefit                                     ",1284,"Coast Benefit                                     1284"]
["Colonial Benefits","Colonial Benefits                                 ",1274,"Colonial Benefits                                 1274"]
["Colorado Access","Colorado Access                                   ",1280,"Colorado Access                                   1280"]
["Columbia United Providers, Inc.","Columbia United Providers, Inc.                   ",5875,"Columbia United Providers, Inc.                   5875"]
["Community Health Choice, Inc.","Community Health Choice, Inc.                     ",5252,"Community Health Choice, Inc.                     5252"]
["Community Health Group","Community Health Group                            ",5835,"Community Health Group                            5835"]
["Community Health Plan of Washington","Community Health Plan of Washington               ",3767,"Community Health Plan of Washington               3767"]
["Comp Benefits Corp.","Comp Benefits Corp.                               ",1299,"Comp Benefits Corp.                               1299"]
["Companhia Portuguesa de Seguros de Saude, S.A.","Companhia Portuguesa de Seguros de Saude, S.A.    ",1308,"Companhia Portuguesa de Seguros de Saude, S.A.    1308"]
["Complete Benefit Solutions","Complete Benefit Solutions                        ",1310,"Complete Benefit Solutions                        1310"]
["Comprehensive Health Management, Inc","Comprehensive Health Management, Inc              ",3267,"Comprehensive Health Management, Inc              3267"]
["Computer Science Corporation","Computer Science Corporation                      ",3141,"Computer Science Corporation                      3141"]
["Concert Third Party Administrators, LLC","Concert Third Party Administrators, LLC           ",5615,"Concert Third Party Administrators, LLC           5615"]
["Connecticut Carpenters Health Fund","Connecticut Carpenters Health Fund                ",1390,"Connecticut Carpenters Health Fund                1390"]
["Consolidated Services Group","Consolidated Services Group                       ",5013,"Consolidated Services Group                       5013"]
["Contra Costa Health Services","Contra Costa Health Services                      ",1335,"Contra Costa Health Services                      1335"]
["Convey Compliance Systems Inc - Regional","Convey Compliance Systems Inc - Regional          ",5134,"Convey Compliance Systems Inc - Regional          5134"]
["Cook Children's Health Plan","Cook Children's Health Plan                       ",6255,"Cook Children's Health Plan                       6255"]
["Cooperative Systems Solutions","Cooperative Systems Solutions                     ",3464,"Cooperative Systems Solutions                     3464"]
["Coordinated Care Solutions","Coordinated Care Solutions                        ",3463,"Coordinated Care Solutions                        3463"]
["Coresource","Coresource                                        ",1340,"Coresource                                        1340"]
["Corizon, Inc.","Corizon, Inc.                                     ",4003,"Corizon, Inc.                                     4003"]
["Corporate System Administrators","Corporate System Administrators                   ",1346,"Corporate System Administrators                   1346"]
["Cost Containment USA","Cost Containment USA                              ",1351,"Cost Containment USA                              1351"]
["Cosvi","Cosvi                                             ",1368,"Cosvi                                             1368"]
["Country Life Insurance Co.","Country Life Insurance Co.                        ",1362,"Country Life Insurance Co.                        1362"]
["Countrywide Care Services","Countrywide Care Services                         ",1371,"Countrywide Care Services                         1371"]
["County of Ventura","County of Ventura                                 ",5362,"County of Ventura                                 5362"]
["Cox Health Plans","Cox Health Plans                                  ",3465,"Cox Health Plans                                  3465"]
["Cox HealthPlans, LLC","Cox HealthPlans, LLC                              ",3769,"Cox HealthPlans, LLC                              3769"]
["Creative Plan Administrators, LLC","Creative Plan Administrators, LLC                 ",2778,"Creative Plan Administrators, LLC                 2778"]
["Croy Hall Management, Inc","Croy Hall Management, Inc                         ",1384,"Croy Hall Management, Inc                         1384"]
["CSEA Employee Benefit Fund","CSEA Employee Benefit Fund                        ",1418,"CSEA Employee Benefit Fund                        1418"]
["DaVita Village Health, Inc","DaVita Village Health, Inc                        ",3562,"DaVita Village Health, Inc                        3562"]
["dbMotion","dbMotion                                          ",5441,"dbMotion                                          5441"]
["Delta Dental of California","Delta Dental of California                        ",1404,"Delta Dental of California                        1404"]
["DeniServ, LLC","DeniServ, LLC                                     ",3771,"DeniServ, LLC                                     3771"]
["Denver Health Medical Plan, Inc","Denver Health Medical Plan, Inc                   ",6075,"Denver Health Medical Plan, Inc                   6075"]
["District No. 9.1.A. of M. & A.W.","District No. 9.1.A. of M. & A.W.                  ",1006,"District No. 9.1.A. of M. & A.W.                  1006"]
["Diversified Administration","Diversified Administration                        ",1013,"Diversified Administration                        1013"]
["Diversified Group Administrators, Inc.","Diversified Group Administrators, Inc.            ",1025,"Diversified Group Administrators, Inc.            1025"]
["Ebix, Inc.","Ebix, Inc.                                        ",5442,"Ebix, Inc.                                        5442"]
["Echo Health Inc","Echo Health Inc                                   ",4391,"Echo Health Inc                                   4391"]
["Echo Health Inc - BA","Echo Health Inc - BA                              ",4932,"Echo Health Inc - BA                              4932"]
["Echo Health Inc - BCBS","Echo Health Inc - BCBS                            ",4863,"Echo Health Inc - BCBS                            4863"]
["eHealth Partners","eHealth Partners                                  ",3505,"eHealth Partners                                  3505"]
["El Paso First","El Paso First                                     ",3466,"El Paso First                                     3466"]
["Elderplan","Elderplan                                         ",3284,"Elderplan                                         3284"]
["Eliza Corporation-BCBS","Eliza Corporation-BCBS                            ",5796,"Eliza Corporation-BCBS                            5796"]
["Elmco LLC","Elmco LLC                                         ",1110,"Elmco LLC                                         1110"]
["Elsevier","Elsevier                                          ",1487,"Elsevier                                          1487"]
["Elsevier - Emerging","Elsevier - Emerging                               ",5955,"Elsevier - Emerging                               5955"]
["EmblemHealth Inc.",{"$f":"A196&REPT(\" \",(50-LEN(A196)))","v":"EmblemHealth Inc.                                 "},5333,"EmblemHealth Inc.                                 5333"]
["Emdeon Business Services","Emdeon Business Services                          ",3775,{"$f":"B197&C197","v":"Emdeon Business Services                          3775"}]
["Emdeon Business Services - BA","Emdeon Business Services - BA                     ",4853,"Emdeon Business Services - BA                     4853"]
["Emdeon Business Services - BCBS","Emdeon Business Services - BCBS                   ",4896,"Emdeon Business Services - BCBS                   4896"]
["Emdeon Business Services - Emerging","Emdeon Business Services - Emerging               ",4854,"Emdeon Business Services - Emerging               4854"]
["Emdeon Business Services - National","Emdeon Business Services - National               ",4855,"Emdeon Business Services - National               4855"]
["Emdeon Business Services - Regional","Emdeon Business Services - Regional               ",4856,"Emdeon Business Services - Regional               4856"]
["Emdeon Corporation","Emdeon Corporation                                ",1916,"Emdeon Corporation                                1916"]
["Empire Blue Cross Blue Shield","Empire Blue Cross Blue Shield                     ",3285,"Empire Blue Cross Blue Shield                     3285"]
["Employee Benefit Consultants, Inc.","Employee Benefit Consultants, Inc.                ",1120,"Employee Benefit Consultants, Inc.                1120"]
["Employee Benefit Management Corp.","Employee Benefit Management Corp.                 ",1125,"Employee Benefit Management Corp.                 1125"]
["Employee Benefit Services, Inc.","Employee Benefit Services, Inc.                   ",1132,"Employee Benefit Services, Inc.                   1132"]
["Employers Mutual, LLC Thomas A. Dillion, Independe","Employers Mutual, LLC Thomas A. Dillion, Independe",2158,"Employers Mutual, LLC Thomas A. Dillion, Independe2158"]
["EPIC Managment, LP","EPIC Managment, LP                                ",1157,"EPIC Managment, LP                                1157"]
["Epoch Group, LC","Epoch Group, LC                                   ",1164,"Epoch Group, LC                                   1164"]
["Essence Health","Essence Health                                    ",1253,"Essence Health                                    1253"]
["Evolution Benefits","Evolution Benefits                                ",3772,"Evolution Benefits                                3772"]
["Excellus Health Plan","Excellus Health Plan                              ",1267,"Excellus Health Plan                              1267"]
["Express Scripts, Inc","Express Scripts, Inc                              ",3286,"Express Scripts, Inc                              3286"]
["EyeMed Vision Care","EyeMed Vision Care                                ",5072,"EyeMed Vision Care                                5072"]
["F. A. Richard & Associates","F. A. Richard & Associates                        ",1276,"F. A. Richard & Associates                        1276"]
["FairPay Solutions","FairPay Solutions                                 ",3000,"FairPay Solutions                                 3000"]
["Fallon Community Health Plan","Fallon Community Health Plan                      ",1290,"Fallon Community Health Plan                      1290"]
["Family Health Network","Family Health Network                             ",5514,"Family Health Network                             5514"]
["Federated  Mutual Insurance Companies","Federated  Mutual Insurance Companies             ",1319,"Federated  Mutual Insurance Companies             1319"]
["Fidelis Care N.Y.","Fidelis Care N.Y.                                 ",1323,"Fidelis Care N.Y.                                 1323"]
["First Consulting Group","First Consulting Group                            ",3773,"First Consulting Group                            3773"]
["First Health Group Corp.","First Health Group Corp.                          ",1329,"First Health Group Corp.                          1329"]
["Fiserv Health","Fiserv Health                                     ",3287,"Fiserv Health                                     3287"]
["FlexTech","FlexTech                                          ",3506,"FlexTech                                          3506"]
["Florida Health Administrators, Inc.","Florida Health Administrators, Inc.               ",4791,"Florida Health Administrators, Inc.               4791"]
["Florida Health Care Plans","Florida Health Care Plans                         ",3824,"Florida Health Care Plans                         3824"]
["Florida Health Plan Administrators, L.L.C","Florida Health Plan Administrators, L.L.C         ",2697,"Florida Health Plan Administrators, L.L.C         2697"]
["Florida Healthcare Plus, Inc.","Florida Healthcare Plus, Inc.                     ",5513,"Florida Healthcare Plus, Inc.                     5513"]
["Ford Meter Box Company, Inc.","Ford Meter Box Company, Inc.                      ",1370,"Ford Meter Box Company, Inc.                      1370"]
["Forsythe Solutions Group, Inc.","Forsythe Solutions Group, Inc.                    ",4025,"Forsythe Solutions Group, Inc.                    4025"]
["Fringe Benefits Management","Fringe Benefits Management                        ",1223,"Fringe Benefits Management                        1223"]
["Fringe Benefits Services","Fringe Benefits Services                          ",1485,"Fringe Benefits Services                          1485"]
["Future Vision","Future Vision                                     ",3774,"Future Vision                                     3774"]
["GA Department of Community Health","GA Department of Community Health                 ",6019,"GA Department of Community Health                 6019"]
["Galaxy Health Network","Galaxy Health Network                             ",1386,"Galaxy Health Network                             1386"]
["Gateway EDI","Gateway EDI                                       ",5715,"Gateway EDI                                       5715"]
["Gateway Health Plan","Gateway Health Plan                               ",3288,"Gateway Health Plan                               3288"]
["Geisinger Health Plan","Geisinger Health Plan                             ",4873,"Geisinger Health Plan                             4873"]
["Genworth Financial / Employee Benefits Group","Genworth Financial / Employee Benefits Group      ",1381,"Genworth Financial / Employee Benefits Group      1381"]
["Global Care","Global Care                                       ",2577,"Global Care                                       2577"]
["Global Excel Management, Inc.","Global Excel Management, Inc.                     ",4651,"Global Excel Management, Inc.                     4651"]
["Government Employees Hospital Association","Government Employees Hospital Association         ",1416,"Government Employees Hospital Association         1416"]
["Grant Physicians Practice Association","Grant Physicians Practice Association             ",1420,"Grant Physicians Practice Association             1420"]
["Great Lakes Health Plan","Great Lakes Health Plan                           ",1423,"Great Lakes Health Plan                           1423"]
["Group Health Cooperative of Puget Sound","Group Health Cooperative of Puget Sound           ",3290,"Group Health Cooperative of Puget Sound           3290"]
["Group Insurance Service Center, Inc.","Group Insurance Service Center, Inc.              ",1430,"Group Insurance Service Center, Inc.              1430"]
["Guardian Life Ins.","Guardian Life Ins.                                ",1373,"Guardian Life Ins.                                1373"]
["Gunderson Lutheran, Inc","Gunderson Lutheran, Inc                           ",6016,"Gunderson Lutheran, Inc                           6016"]
["H.H.C. Group","H.H.C. Group                                      ",1441,"H.H.C. Group                                      1441"]
["Harrington Benefit Services","Harrington Benefit Services                       ",1005,"Harrington Benefit Services                       1005"]
["HCH Administration","HCH Administration                                ",1014,"HCH Administration                                1014"]
["Health Alliance  Plan of Michigan","Health Alliance  Plan of Michigan                 ",4226,"Health Alliance  Plan of Michigan                 4226"]
["Health Alliance Medical Plans","Health Alliance Medical Plans                     ",3292,"Health Alliance Medical Plans                     3292"]
["Health Care Service Corporation","Health Care Service Corporation                   ",2921,"Health Care Service Corporation                   2921"]
["Health Cost Solutions/WC Beeler","Health Cost Solutions/WC Beeler                   ",5341,"Health Cost Solutions/WC Beeler                   5341"]
["Health First Health Plans, Inc","Health First Health Plans, Inc                    ",3081,"Health First Health Plans, Inc                    3081"]
["Health Net of the Northeast","Health Net of the Northeast                       ",1676,"Health Net of the Northeast                       1676"]
["Health New England","Health New England                                ",1101,"Health New England                                1101"]
["Health Payment Systems, Inc.",{"$f":"A260&REPT(\" \",(50-LEN(A260)))","v":"Health Payment Systems, Inc.                      "},4811,"Health Payment Systems, Inc.                      4811"]
["Health Plan of Neveda","Health Plan of Neveda                             ",3294,{"$f":"B261&C261","v":"Health Plan of Neveda                             3294"}]
["Health Plan of San Joaquin","Health Plan of San Joaquin                        ",4451,"Health Plan of San Joaquin                        4451"]
["Health Plan of the Redwoods","Health Plan of the Redwoods                       ",1104,"Health Plan of the Redwoods                       1104"]
["Health Plus Michigan","Health Plus Michigan                              ",3583,"Health Plus Michigan                              3583"]
["Health Plus PHSP","Health Plus PHSP                                  ",1242,"Health Plus PHSP                                  1242"]
["Health Services for Children with Special Needs In","Health Services for Children with Special Needs In",1283,"Health Services for Children with Special Needs In1283"]
["Health Special Risk, Inc.","Health Special Risk, Inc.                         ",1111,"Health Special Risk, Inc.                         1111"]
["Healthcare Benefits, Inc.","Healthcare Benefits, Inc.                         ",1130,"Healthcare Benefits, Inc.                         1130"]
["Healthcare Group M-Plan","Healthcare Group M-Plan                           ",1555,"Healthcare Group M-Plan                           1555"]
["HealthCare Information Management-Emerging","HealthCare Information Management-Emerging        ",5392,"HealthCare Information Management-Emerging        5392"]
["HealthCare Information Mgt","HealthCare Information Mgt                        ",3776,"HealthCare Information Mgt                        3776"]
["Healthcare Insight","Healthcare Insight                                ",2537,"Healthcare Insight                                2537"]
["Healthcare Management Administrators","Healthcare Management Administrators              ",1136,"Healthcare Management Administrators              1136"]
["HealthFirst, Inc","HealthFirst, Inc                                  ",3296,"HealthFirst, Inc                                  3296"]
["HealthNetwork Systems LLC","HealthNetwork Systems LLC                         ",1146,"HealthNetwork Systems LLC                         1146"]
["HealthNow New York","HealthNow New York                                ",1148,"HealthNow New York                                1148"]
["HealthPartners","HealthPartners                                    ",3297,"HealthPartners                                    3297"]
["HealthPlan Services, Inc.","HealthPlan Services, Inc.                         ",1194,"HealthPlan Services, Inc.                         1194"]
["HealthScope Benefits","HealthScope Benefits                              ",2919,"HealthScope Benefits                              2919"]
["HealthSmart Benefit Solutions, Inc","HealthSmart Benefit Solutions, Inc                ",1391,"HealthSmart Benefit Solutions, Inc                1391"]
["HealthSpring Management, Inc","HealthSpring Management, Inc                      ",3298,"HealthSpring Management, Inc                      3298"]
["HealthSpring, Inc.","HealthSpring, Inc.                                ",2418,"HealthSpring, Inc.                                2418"]
["HealthTrans, LLC","HealthTrans, LLC                                  ",3703,"HealthTrans, LLC                                  3703"]
["Heartland Health System","Heartland Health System                           ",1254,"Heartland Health System                           1254"]
["Heritage Consultants, Inc.","Heritage Consultants, Inc.                        ",5775,"Heritage Consultants, Inc.                        5775"]
["Hewlett-Packard","Hewlett-Packard                                   ",3777,"Hewlett-Packard                                   3777"]
["HFN","HFN                                               ",4046,"HFN                                               4046"]
["HIP","HIP                                               ",3299,"HIP                                               3299"]
["HM Benefits Administrators Inc.","HM Benefits Administrators Inc.                   ",1257,"HM Benefits Administrators Inc.                   1257"]
["HMSA","HMSA                                              ",3469,"HMSA                                              3469"]
["Horizon Blue Cross Blue Shield of NJ","Horizon Blue Cross Blue Shield of NJ              ",1268,"Horizon Blue Cross Blue Shield of NJ              1268"]
["Hospital Benefits","Hospital Benefits                                 ",1270,"Hospital Benefits                                 1270"]
["Humana Inc.","Humana Inc.                                       ",1286,"Humana Inc.                                       1286"]
["Hunt Insurance Group","Hunt Insurance Group                              ",1289,"Hunt Insurance Group                              1289"]
["ILABLE","ILABLE                                            ","NOT AVAILABLE","ILABLE                                            NOT AVAILABLE"]
["Illinois Masonic Medical Center","Illinois Masonic Medical Center                   ",1296,"Illinois Masonic Medical Center                   1296"]
["Imperio Bonanca, S.A.","Imperio Bonanca, S.A.                             ",2858,"Imperio Bonanca, S.A.                             2858"]
["IMSCO Health Systems","IMSCO Health Systems                              ",2737,"IMSCO Health Systems                              2737"]
["Independence Blue Cross","Independence Blue Cross                           ",5232,"Independence Blue Cross                           5232"]
["Independent Care Health Plan","Independent Care Health Plan                      ",5112,"Independent Care Health Plan                      5112"]
["Independent Living Systems, LLC","Independent Living Systems, LLC                   ",6116,"Independent Living Systems, LLC                   6116"]
["Infocrossing","Infocrossing                                      ",3101,"Infocrossing                                      3101"]
["Infocrossing - BCBS","Infocrossing - BCBS                               ",4892,"Infocrossing - BCBS                               4892"]
["Infocrossing - Emerging","Infocrossing - Emerging                           ",4895,"Infocrossing - Emerging                           4895"]
["Infocrossing - National","Infocrossing - National                           ",4893,"Infocrossing - National                           4893"]
["Infocrossing - Regional","Infocrossing - Regional                           ",4894,"Infocrossing - Regional                           4894"]
["Infosys","Infosys                                           ",3780,"Infosys                                           3780"]
["Infosys - Government","Infosys - Government                              ",5212,"Infosys - Government                              5212"]
["Infosys - Regional","Infosys - Regional                                ",5213,"Infosys - Regional                                5213"]
["Ingenix Hospital Solution Group","Ingenix Hospital Solution Group                   ",4004,"Ingenix Hospital Solution Group                   4004"]
["Ingenix, Inc.","Ingenix, Inc.                                     ",3041,"Ingenix, Inc.                                     3041"]
["Ingenix, Inc. - BCBS","Ingenix, Inc. - BCBS                              ",4858,"Ingenix, Inc. - BCBS                              4858"]
["Ingenix, Inc. - Emerging","Ingenix, Inc. - Emerging                          ",4859,"Ingenix, Inc. - Emerging                          4859"]
["Ingenix, Inc. - Govt/Intl","Ingenix, Inc. - Govt/Intl                         ",5412,"Ingenix, Inc. - Govt/Intl                         5412"]
["Ingenix, Inc. - National","Ingenix, Inc. - National                          ",4860,"Ingenix, Inc. - National                          4860"]
["Ingenix, Inc. - Regional","Ingenix, Inc. - Regional                          ",4861,"Ingenix, Inc. - Regional                          4861"]
["Insurance & Benefit Advocates, Inc.","Insurance & Benefit Advocates, Inc.               ",3663,"Insurance & Benefit Advocates, Inc.               3663"]
["Insurance Administrative Solutions, LLC","Insurance Administrative Solutions, LLC           ",1233,"Insurance Administrative Solutions, LLC           1233"]
["Insurance Administrators of America","Insurance Administrators of America               ",1317,"Insurance Administrators of America               1317"]
["Integritas Benefit Group, LLC.","Integritas Benefit Group, LLC.                    ",3021,"Integritas Benefit Group, LLC.                    3021"]
["International Benefits Admin., LLC","International Benefits Admin., LLC                ",4366,"International Benefits Admin., LLC                4366"]
["International Subrogation Management - BA","International Subrogation Management - BA         ",4852,"International Subrogation Management - BA         4852"]
["International Union of Operating Engineer Local 15","International Union of Operating Engineer Local 15",1717,"International Union of Operating Engineer Local 151717"]
["International Union of Operating Engineers Local 4",{"$f":"A324&REPT(\" \",(50-LEN(A324)))","v":"International Union of Operating Engineers Local 4"},1333,"International Union of Operating Engineers Local 41333"]
["Intervalley Health Plan","Intervalley Health Plan                           ",1331,{"$f":"B325&C325","v":"Intervalley Health Plan                           1331"}]
["Ironworker Employees' Benefit Corporation","Ironworker Employees' Benefit Corporation         ",4432,"Ironworker Employees' Benefit Corporation         4432"]
["ISIS Solutions Inc.","ISIS Solutions Inc.                               ",1816,"ISIS Solutions Inc.                               1816"]
["IU Medical Group-Primary Care","IU Medical Group-Primary Care                     ",3781,"IU Medical Group-Primary Care                     3781"]
["JAS Inc.","JAS Inc.                                          ",1344,"JAS Inc.                                          1344"]
["John Muir / Mount Diablo Health Network","John Muir / Mount Diablo Health Network           ",1636,"John Muir / Mount Diablo Health Network           1636"]
["John P. Pearl & Associates Ltd.","John P. Pearl & Associates Ltd.                   ",1756,"John P. Pearl & Associates Ltd.                   1756"]
["Johns Hopkins","Johns Hopkins                                     ",3425,"Johns Hopkins                                     3425"]
["JPS Health Network","JPS Health Network                                ",5272,"JPS Health Network                                5272"]
["Kaiser Permanente","Kaiser Permanente                                 ",1011,"Kaiser Permanente                                 1011"]
["Kansas City Life Insurance","Kansas City Life Insurance                        ",1020,"Kansas City Life Insurance                        1020"]
["Kelsey Seybal","Kelsey Seybal                                     ",3683,"Kelsey Seybal                                     3683"]
["Key Benefits Inc.","Key Benefits Inc.                                 ",1087,"Key Benefits Inc.                                 1087"]
["Keystone Mercy Health Plan","Keystone Mercy Health Plan                        ",1488,"Keystone Mercy Health Plan                        1488"]
["Klais & Company Inc.","Klais & Company Inc.                              ",1103,"Klais & Company Inc.                              1103"]
["KS Plan Administrator","KS Plan Administrator                             ",3883,"KS Plan Administrator                             3883"]
["LA Care Health Plan","LA Care Health Plan                               ",5371,"LA Care Health Plan                               5371"]
["Lake County Physicians Assoc.","Lake County Physicians Assoc.                     ",2457,"Lake County Physicians Assoc.                     2457"]
["Liberty Health Advantage","Liberty Health Advantage                          ",3302,"Liberty Health Advantage                          3302"]
["Liberty Mutual","Liberty Mutual                                    ",1123,"Liberty Mutual                                    1123"]
["LifeWise Assurance Co.","LifeWise Assurance Co.                            ",1228,"LifeWise Assurance Co.                            1228"]
["Lipman Company Inc.","Lipman Company Inc.                               ",1128,"Lipman Company Inc.                               1128"]
["Lockard & Williams Insurance","Lockard & Williams Insurance                      ",1134,"Lockard & Williams Insurance                      1134"]
["Loma Linda University","Loma Linda University                             ",1505,"Loma Linda University                             1505"]
["London Health Administrators, Ltd.","London Health Administrators, Ltd.                ",1138,"London Health Administrators, Ltd.                1138"]
["Lovelace Health Plan","Lovelace Health Plan                              ",3303,"Lovelace Health Plan                              3303"]
["Macy's, Inc.","Macy's, Inc.                                      ",1282,"Macy's, Inc.                                      1282"]
["MagnaCare Administrative Services, LLC","MagnaCare Administrative Services, LLC            ",3382,"MagnaCare Administrative Services, LLC            3382"]
["Managed Care Administrators, Inc.","Managed Care Administrators, Inc.                 ",5334,"Managed Care Administrators, Inc.                 5334"]
["Managed Care Systems, LP","Managed Care Systems, LP                          ",3470,"Managed Care Systems, LP                          3470"]
["Mandalay Resort Group","Mandalay Resort Group                             ",1166,"Mandalay Resort Group                             1166"]
["MAPFRE Life Insurance Company","MAPFRE Life Insurance Company                     ",1160,"MAPFRE Life Insurance Company                     1160"]
["Martin's Point Health Care","Martin's Point Health Care                        ",4491,"Martin's Point Health Care                        4491"]
["McKesson Information Systems","McKesson Information Systems                      ",3782,"McKesson Information Systems                      3782"]
["McKesson Information Systems - BCBS","McKesson Information Systems - BCBS               ",5053,"McKesson Information Systems - BCBS               5053"]
["McKesson Information Systems - Emerging","McKesson Information Systems - Emerging           ",4862,"McKesson Information Systems - Emerging           4862"]
["McKesson Information Systems - National","McKesson Information Systems - National           ",5054,"McKesson Information Systems - National           5054"]
["McKesson Information Systems - Regional","McKesson Information Systems - Regional           ",5052,"McKesson Information Systems - Regional           5052"]
["McNulty Barber Marketing","McNulty Barber Marketing                          ",1208,"McNulty Barber Marketing                          1208"]
["MDCareAdvantage","MDCareAdvantage                                   ",4452,"MDCareAdvantage                                   4452"]
["Med Advantage","Med Advantage                                     ",5443,"Med Advantage                                     5443"]
["MED3OOO","MED3OOO                                           ",3161,"MED3OOO                                           3161"]
["Medical Benefits Administrators Inc.","Medical Benefits Administrators Inc.              ",1221,"Medical Benefits Administrators Inc.              1221"]
["Medical Data Express  LLC","Medical Data Express  LLC                         ",3783,"Medical Data Express  LLC                         3783"]
["Medical Mutual of Ohio","Medical Mutual of Ohio                            ",4186,"Medical Mutual of Ohio                            4186"]
["MediLinQ","MediLinQ                                          ",3471,"MediLinQ                                          3471"]
["Mediversal","Mediversal                                        ",1229,"Mediversal                                        1229"]
["MedSolutions, Inc.","MedSolutions, Inc.                                ",3472,"MedSolutions, Inc.                                3472"]
["MEGA Life & Health Insurance Company","MEGA Life & Health Insurance Company              ",1143,"MEGA Life & Health Insurance Company              1143"]
["Memorial Health System","Memorial Health System                            ",1936,"Memorial Health System                            1936"]
["Memorial Hospital","Memorial Hospital                                 ",1239,"Memorial Hospital                                 1239"]
["Memphis Light, Gas & Water Division","Memphis Light, Gas & Water Division               ",1241,"Memphis Light, Gas & Water Division               1241"]
["Mental Health Network","Mental Health Network                             ",3473,"Mental Health Network                             3473"]
["Merchants Benefits Administrators Inc.","Merchants Benefits Administrators Inc.            ",1316,"Merchants Benefits Administrators Inc.            1316"]
["Mercy Benefit Administrators","Mercy Benefit Administrators                      ",1141,"Mercy Benefit Administrators                      1141"]
["Mercy Health Plans","Mercy Health Plans                                ",1244,"Mercy Health Plans                                1244"]
["Meritain Health, Inc.","Meritain Health, Inc.                             ",1392,"Meritain Health, Inc.                             1392"]
["Metavante - BA","Metavante - BA                                    ",4994,"Metavante - BA                                    4994"]
["Metavante - BCBS","Metavante - BCBS                                  ",4992,"Metavante - BCBS                                  4992"]
["Metavante - Emerging","Metavante - Emerging                              ",4993,"Metavante - Emerging                              4993"]
["Metcare Health Plans, Inc","Metcare Health Plans, Inc                         ",3306,"Metcare Health Plans, Inc                         3306"]
["MetLife - Small Market Information","MetLife - Small Market Information                ",1263,"MetLife - Small Market Information                1263"]
["Metlife Mexico, S.A.","Metlife Mexico, S.A.                              ",4045,"Metlife Mexico, S.A.                              4045"]
["MH Net",{"$f":"A388&REPT(\" \",(50-LEN(A388)))","v":"MH Net                                            "},3502,"MH Net                                            3502"]
["Michael Reese Physicians","Michael Reese Physicians                          ",1266,{"$f":"B389&C389","v":"Michael Reese Physicians                          1266"}]
["Michigan Conference of Teamsters-Welfare Fund","Michigan Conference of Teamsters-Welfare Fund     ",1269,"Michigan Conference of Teamsters-Welfare Fund     1269"]
["Michigan EducationSpecialized Services Association","Michigan EducationSpecialized Services Association",1260,"Michigan EducationSpecialized Services Association1260"]
["Micro-Dyn Medical Systems, Inc","Micro-Dyn Medical Systems, Inc                    ",3784,"Micro-Dyn Medical Systems, Inc                    3784"]
["Mid-America Associates Inc.","Mid-America Associates Inc.                       ",1271,"Mid-America Associates Inc.                       1271"]
["Midwest Security Life Insurance Co.","Midwest Security Life Insurance Co.               ",1273,"Midwest Security Life Insurance Co.               1273"]
["Milliman Care Guidelines","Milliman Care Guidelines                          ",3786,"Milliman Care Guidelines                          3786"]
["Milliman Care Guidelines - National","Milliman Care Guidelines - National               ",5557,"Milliman Care Guidelines - National               5557"]
["Milliman Care Guidelines - Regional","Milliman Care Guidelines - Regional               ",5558,"Milliman Care Guidelines - Regional               5558"]
["Milliman Care Guidlines - EMERGING","Milliman Care Guidlines - EMERGING                ",4833,"Milliman Care Guidlines - EMERGING                4833"]
["Misc. Customer","Misc. Customer                                    ",2798,"Misc. Customer                                    2798"]
["Mississippi Public Entity Employee Benefit Service","Mississippi Public Entity Employee Benefit Service",1003,"Mississippi Public Entity Employee Benefit Service1003"]
["Mississippi Select","Mississippi Select                                ",3503,"Mississippi Select                                3503"]
["Missoula County Employee Benefit","Missoula County Employee Benefit                  ",1279,"Missoula County Employee Benefit                  1279"]
["MMM Healthcare, Inc.","MMM Healthcare, Inc.                              ",4326,"MMM Healthcare, Inc.                              4326"]
["Molina Healthcare, Inc.","Molina Healthcare, Inc.                           ",3474,"Molina Healthcare, Inc.                           3474"]
["Molina Medicaid Solutions","Molina Medicaid Solutions                         ",3487,"Molina Medicaid Solutions                         3487"]
["Money Services, Inc.","Money Services, Inc.                              ",5755,"Money Services, Inc.                              5755"]
["Montefiore","Montefiore                                        ",3475,"Montefiore                                        3475"]
["Motion Picture Industry","Motion Picture Industry                           ",3476,"Motion Picture Industry                           3476"]
["Multiplan","Multiplan                                         ",1007,"Multiplan                                         1007"]
["Mutual Assurance Administrators","Mutual Assurance Administrators                   ",1012,"Mutual Assurance Administrators                   1012"]
["Mutual of America","Mutual of America                                 ",5475,"Mutual of America                                 5475"]
["Mutual of Omaha Insurance Co.","Mutual of Omaha Insurance Co.                     ",1015,"Mutual of Omaha Insurance Co.                     1015"]
["MVP Health Plan","MVP Health Plan                                   ",1016,"MVP Health Plan                                   1016"]
["National Care Network","National Care Network                             ",2019,"National Care Network                             2019"]
["National Health Benefits","National Health Benefits                          ",1026,"National Health Benefits                          1026"]
["National Health Insurance Co.","National Health Insurance Co.                     ",1029,"National Health Insurance Co.                     1029"]
["National Material LP","National Material LP                              ",1033,"National Material LP                              1033"]
["National Rural Electric Cooperative Association","National Rural Electric Cooperative Association   ",1019,"National Rural Electric Cooperative Association   1019"]
["NCAS","NCAS                                              ",5444,"NCAS                                              5444"]
["Neighborhood Health Partnership","Neighborhood Health Partnership                   ",3307,"Neighborhood Health Partnership                   3307"]
["Neighborhood Health Plan","Neighborhood Health Plan                          ",1036,"Neighborhood Health Plan                          1036"]
["Neighborhood Health Plan of RI","Neighborhood Health Plan of RI                    ",4348,"Neighborhood Health Plan of RI                    4348"]
["Nesika Health Group","Nesika Health Group                               ",1492,"Nesika Health Group                               1492"]
["Network Health","Network Health                                    ",1037,"Network Health                                    1037"]
["New West Health Services","New West Health Services                          ",1287,"New West Health Services                          1287"]
["Noridian Benefit Plan Administrators","Noridian Benefit Plan Administrators              ",1035,"Noridian Benefit Plan Administrators              1035"]
["North Broward Hospital District","North Broward Hospital District                   ",1056,"North Broward Hospital District                   1056"]
["North Texas Speciality Physicians GSA","North Texas Speciality Physicians GSA             ",4146,"North Texas Speciality Physicians GSA             4146"]
["Northern Arizona Regional Behavioral Health Author","Northern Arizona Regional Behavioral Health Author",5855,"Northern Arizona Regional Behavioral Health Author5855"]
["Northwestern National Insurance Co.","Northwestern National Insurance Co.               ",1066,"Northwestern National Insurance Co.               1066"]
["NYSA-ILA Welfare Fund","NYSA-ILA Welfare Fund                             ",1068,"NYSA-ILA Welfare Fund                             1068"]
["ODS Companies","ODS Companies                                     ",1081,"ODS Companies                                     1081"]
["ODS Companies","ODS Companies                                     ",2477,"ODS Companies                                     2477"]
["OSF Health Plans","OSF Health Plans                                  ",1093,"OSF Health Plans                                  1093"]
["PacifiCare Health Systems","PacifiCare Health Systems                         ",1105,"PacifiCare Health Systems                         1105"]
["PacificSource Health Plans","PacificSource Health Plans                        ",2859,"PacificSource Health Plans                        2859"]
["Partners HealthCare System, Inc.","Partners HealthCare System, Inc.                  ",3020,"Partners HealthCare System, Inc.                  3020"]
["Partners National Health Plans of NC","Partners National Health Plans of NC              ",3308,"Partners National Health Plans of NC              3308"]
["Patrolmen's Benevolent Association","Patrolmen's Benevolent Association                ",3478,"Patrolmen's Benevolent Association                3478"]
["Peoples Health Network","Peoples Health Network                            ",3309,"Peoples Health Network                            3309"]
["Pequot Pharmaceutical Network","Pequot Pharmaceutical Network                     ",1154,"Pequot Pharmaceutical Network                     1154"]
["PHIA Group","PHIA Group                                        ",3181,"PHIA Group                                        3181"]
["Phoenix Health Plan, LLC","Phoenix Health Plan, LLC                          ",6035,"Phoenix Health Plan, LLC                          6035"]
["Physician Health Plans of Northern Indiana","Physician Health Plans of Northern Indiana        ",3479,"Physician Health Plans of Northern Indiana        3479"]
["Physician's Health Plan Shared Services, LLC","Physician's Health Plan Shared Services, LLC      ",2698,"Physician's Health Plan Shared Services, LLC      2698"]
["Physicians Care of California Inc.","Physicians Care of California Inc.                ",5348,"Physicians Care of California Inc.                5348"]
["Physicians Health Plan of South Michigan","Physicians Health Plan of South Michigan          ",4370,"Physicians Health Plan of South Michigan          4370"]
["Pilgrim's Pride Corporation","Pilgrim's Pride Corporation                       ",1315,"Pilgrim's Pride Corporation                       1315"]
["Pima Health Systems","Pima Health Systems                               ",3480,"Pima Health Systems                               3480"]
["Pioneer Management Systems","Pioneer Management Systems                        ",1178,"Pioneer Management Systems                        1178"]
["Pittman and Associates","Pittman and Associates                            ",1207,"Pittman and Associates                            1207"]
["Plan Handlers",{"$f":"A452&REPT(\" \",(50-LEN(A452)))","v":"Plan Handlers                                     "},1397,"Plan Handlers                                     1397"]
["Plan Vista Solutions","Plan Vista Solutions                              ",1214,{"$f":"B453&C453","v":"Plan Vista Solutions                              1214"}]
["Planned Administrators Inc.","Planned Administrators Inc.                       ",1218,"Planned Administrators Inc.                       1218"]
["POMCO","POMCO                                             ",1231,"POMCO                                             1231"]
["Population Health Management","Population Health Management                      ",6018,"Population Health Management                      6018"]
["ppoNext","ppoNext                                           ",1238,"ppoNext                                           1238"]
["Preferred Benefit Administrators Inc.","Preferred Benefit Administrators Inc.             ",5335,"Preferred Benefit Administrators Inc.             5335"]
["Preferred Care Partners","Preferred Care Partners                           ",2617,"Preferred Care Partners                           2617"]
["Preferred Health Systems","Preferred Health Systems                          ",1246,"Preferred Health Systems                          1246"]
["Preferred Medical Claims Solutions","Preferred Medical Claims Solutions                ",2157,"Preferred Medical Claims Solutions                2157"]
["Preferred Medical Plan, Inc.","Preferred Medical Plan, Inc.                      ",5359,"Preferred Medical Plan, Inc.                      5359"]
["Preferred One","Preferred One                                     ",1334,"Preferred One                                     1334"]
["Premera Blue Cross","Premera Blue Cross                                ",1337,"Premera Blue Cross                                1337"]
["Premier Healthcare Exchange, Inc.","Premier Healthcare Exchange, Inc.                 ",5292,"Premier Healthcare Exchange, Inc.                 5292"]
["Presbyterian Health Plan","Presbyterian Health Plan                          ",1345,"Presbyterian Health Plan                          1345"]
["PriMed Management Consulting Services, Inc.","PriMed Management Consulting Services, Inc.       ",5369,"PriMed Management Consulting Services, Inc.       5369"]
["Principal Life Insurance","Principal Life Insurance                          ",4008,"Principal Life Insurance                          4008"]
["Priority Health","Priority Health                                   ",1352,"Priority Health                                   1352"]
["Prism Network Inc.","Prism Network Inc.                                ",1356,"Prism Network Inc.                                1356"]
["Private Heathcare Systems","Private Heathcare Systems                         ",1836,"Private Heathcare Systems                         1836"]
["Professional Claim Management","Professional Claim Management                     ",1360,"Professional Claim Management                     1360"]
["Prosalud HMO Corp","Prosalud HMO Corp                                 ",3723,"Prosalud HMO Corp                                 3723"]
["Protective Life Insurance Co.","Protective Life Insurance Co.                     ",1363,"Protective Life Insurance Co.                     1363"]
["Providence Health Plans","Providence Health Plans                           ",1376,"Providence Health Plans                           1376"]
["QCSI","QCSI                                              ",3522,"QCSI                                              3522"]
["QualChoice Health Plan","QualChoice Health Plan                            ",3311,"QualChoice Health Plan                            3311"]
["QualChoice of Arkansas","QualChoice of Arkansas                            ",1380,"QualChoice of Arkansas                            1380"]
["Rehabilitation Hospital of the Cap & Islands","Rehabilitation Hospital of the Cap & Islands      ",1419,"Rehabilitation Hospital of the Cap & Islands      1419"]
["Religious Order of Jehovah's Witnesses","Religious Order of Jehovah's Witnesses            ",5895,"Religious Order of Jehovah's Witnesses            5895"]
["Resolve Health Plan Administrators, LLC.","Resolve Health Plan Administrators, LLC.          ",5445,"Resolve Health Plan Administrators, LLC.          5445"]
["ResourceOne","ResourceOne                                       ",1095,"ResourceOne                                       1095"]
["Resurrection Health Preferred","Resurrection Health Preferred                     ",1425,"Resurrection Health Preferred                     1425"]
["Reynolds & Reynolds Co.","Reynolds & Reynolds Co.                           ",1401,"Reynolds & Reynolds Co.                           1401"]
["RightCHOICE Benefit Adminstrators, Inc.","RightCHOICE Benefit Adminstrators, Inc.           ",4065,"RightCHOICE Benefit Adminstrators, Inc.           4065"]
["RMS","RMS                                               ",3903,"RMS                                               3903"]
["Rocky Mountain Health Plans","Rocky Mountain Health Plans                       ",1431,"Rocky Mountain Health Plans                       1431"]
["RPM, Inc.","RPM, Inc.                                         ",2899,"RPM, Inc.                                         2899"]
["Sagamore Health Network","Sagamore Health Network                           ",1439,"Sagamore Health Network                           1439"]
["Sales Allowance","Sales Allowance                                   ",1777,"Sales Allowance                                   1777"]
["Salud Dorada con Medicare","Salud Dorada con Medicare                         ",3563,"Salud Dorada con Medicare                         3563"]
["Samaritan Health Services","Samaritan Health Services                         ",2137,"Samaritan Health Services                         2137"]
["San Francisco Health Plan","San Francisco Health Plan                         ",4671,"San Francisco Health Plan                         4671"]
["Sanovia Corporation - Regional","Sanovia Corporation - Regional                    ",5133,"Sanovia Corporation - Regional                    5133"]
["Schaller Anderson LLC","Schaller Anderson LLC                             ",3482,"Schaller Anderson LLC                             3482"]
["Seafarers Vacation Plan","Seafarers Vacation Plan                           ",1389,"Seafarers Vacation Plan                           1389"]
["Security Health Plan of Wisconsin, Inc.","Security Health Plan of Wisconsin, Inc.           ",4672,"Security Health Plan of Wisconsin, Inc.           4672"]
["Select Administrative Services","Select Administrative Services                    ",3789,"Select Administrative Services                    3789"]
["Select Benefit Administrators","Select Benefit Administrators                     ",1417,"Select Benefit Administrators                     1417"]
["SelectHealth","SelectHealth                                      ",1328,"SelectHealth                                      1328"]
["Self-Insured Plans, LLC","Self-Insured Plans, LLC                           ",1472,"Self-Insured Plans, LLC                           1472"]
["Senior Whole Health","Senior Whole Health                               ",6235,"Senior Whole Health                               6235"]
["Sheffield, Olson & McQueen","Sheffield, Olson & McQueen                        ",1474,"Sheffield, Olson & McQueen                        1474"]
["SHPS Inc.","SHPS Inc.                                         ",2920,"SHPS Inc.                                         2920"]
["Sierra Health Services","Sierra Health Services                            ",1475,"Sierra Health Services                            1475"]
["Silverback, LLC","Silverback, LLC                                   ",5512,"Silverback, LLC                                   5512"]
["Simply Healthcare Plans","Simply Healthcare Plans                           ",4872,"Simply Healthcare Plans                           4872"]
["Southern Benefit Services","Southern Benefit Services                         ",2597,"Southern Benefit Services                         2597"]
["Southern National Life Insurance Co.","Southern National Life Insurance Co.              ",1083,"Southern National Life Insurance Co.              1083"]
["Special Agents Mutual Benefit","Special Agents Mutual Benefit                     ",1092,"Special Agents Mutual Benefit                     1092"]
["Spectrum Administrators, Inc.","Spectrum Administrators, Inc.                     ",1114,"Spectrum Administrators, Inc.                     1114"]
["Spraying Systems Company","Spraying Systems Company                          ",4286,"Spraying Systems Company                          4286"]
["St. Barnabas Hospital/Partners","St. Barnabas Hospital/Partners                    ",1126,"St. Barnabas Hospital/Partners                    1126"]
["St. Mary's HealthFirst","St. Mary's HealthFirst                            ",4346,"St. Mary's HealthFirst                            4346"]
["St. Therese Physicians Association","St. Therese Physicians Association                ",1210,"St. Therese Physicians Association                1210"]
["Standard Insurance Co.",{"$f":"A516&REPT(\" \",(50-LEN(A516)))","v":"Standard Insurance Co.                            "},1212,"Standard Insurance Co.                            1212"]
["Standard Life and Casualty Insurance Company","Standard Life and Casualty Insurance Company      ",5446,{"$f":"B517&C517","v":"Standard Life and Casualty Insurance Company      5446"}]
["State of Georgia","State of Georgia                                  ",1224,"State of Georgia                                  1224"]
["Stewart C. Miller & Co. Inc.","Stewart C. Miller & Co. Inc.                      ",1236,"Stewart C. Miller & Co. Inc.                      1236"]
["Stirling and Stirling Benefits","Stirling and Stirling Benefits                    ",5453,"Stirling and Stirling Benefits                    5453"]
["StrataCare, LLC","StrataCare, LLC                                   ",5995,"StrataCare, LLC                                   5995"]
["Stryker Medical","Stryker Medical                                   ",6055,"Stryker Medical                                   6055"]
["Summit America Insurance Services","Summit America Insurance Services                 ",1490,"Summit America Insurance Services                 1490"]
["Sun Health Medisun","Sun Health Medisun                                ",3313,"Sun Health Medisun                                3313"]
["SunLife","SunLife                                           ",1402,"SunLife                                           1402"]
["Superior Vision Services","Superior Vision Services                          ",5452,"Superior Vision Services                          5452"]
["Sybase","Sybase                                            ",2638,"Sybase                                            2638"]
["Sybase - BCBS","Sybase - BCBS                                     ",4792,"Sybase - BCBS                                     4792"]
["Synertech","Synertech                                         ",3483,"Synertech                                         3483"]
["TakeCare Insurance Company","TakeCare Insurance Company                        ",2657,"TakeCare Insurance Company                        2657"]
["Tarrant Health Services LLC.","Tarrant Health Services LLC.                      ",1321,"Tarrant Health Services LLC.                      1321"]
["TC3 Health, LLC","TC3 Health, LLC                                   ",2940,"TC3 Health, LLC                                   2940"]
["Teachers Health Trust","Teachers Health Trust                             ",3484,"Teachers Health Trust                             3484"]
["Teladoc, Inc.","Teladoc, Inc.                                     ",4611,"Teladoc, Inc.                                     4611"]
["Teladoc, Inc. - BA","Teladoc, Inc. - BA                                ",4864,"Teladoc, Inc. - BA                                4864"]
["Tennessee Rural Health","Tennessee Rural Health                            ",3743,"Tennessee Rural Health                            3743"]
["Texas Children's Health Plan Inc","Texas Children's Health Plan Inc                  ",3485,"Texas Children's Health Plan Inc                  3485"]
["The Trizetto Group, Inc.","The Trizetto Group, Inc.                          ",1556,"The Trizetto Group, Inc.                          1556"]
["Thermo Electron Corporation","Thermo Electron Corporation                       ",3314,"Thermo Electron Corporation                       3314"]
["Third Party Commissions","Third Party Commissions                           ",1778,"Third Party Commissions                           1778"]
["Thomas Cooper & Company, Inc.","Thomas Cooper & Company, Inc.                     ",1412,"Thomas Cooper & Company, Inc.                     1412"]
["Three Rivers Provider Network","Three Rivers Provider Network                     ",5012,"Three Rivers Provider Network                     5012"]
["TMG Healthcare Inc.","TMG Healthcare Inc.                               ",1424,"TMG Healthcare Inc.                               1424"]
["TML Group Benefits Risk Pool","TML Group Benefits Risk Pool                      ",1426,"TML Group Benefits Risk Pool                      1426"]
["Topaz Shared Services LLC","Topaz Shared Services LLC                         ",5975,"Topaz Shared Services LLC                         5975"]
["Touchstone Health Partnership","Touchstone Health Partnership                     ",2036,"Touchstone Health Partnership                     2036"]
["Tower Life Insurance Company","Tower Life Insurance Company                      ",1429,"Tower Life Insurance Company                      1429"]
["TPA Benefits, Inc.","TPA Benefits, Inc.                                ",4592,"TPA Benefits, Inc.                                4592"]
["TR Paul","TR Paul                                           ",1113,"TR Paul                                           1113"]
["Triple-S Inc","Triple-S Inc                                      ",3489,"Triple-S Inc                                      3489"]
["TriServ Alliance, LLC","TriServ Alliance, LLC                             ",4306,"TriServ Alliance, LLC                             4306"]
["Tristar Insurance Group","Tristar Insurance Group                           ",5352,"Tristar Insurance Group                           5352"]
["TriWest Healthcare Alliance","TriWest Healthcare Alliance                       ",3315,"TriWest Healthcare Alliance                       3315"]
["Trustmark Insurance Co.","Trustmark Insurance Co.                           ",1432,"Trustmark Insurance Co.                           1432"]
["Tufts Associated Health Plans, Inc.","Tufts Associated Health Plans, Inc.               ",3603,"Tufts Associated Health Plans, Inc.               3603"]
["Tufts Health Plan","Tufts Health Plan                                 ",1438,"Tufts Health Plan                                 1438"]
["UCare Minnesota","UCare Minnesota                                   ",1440,"UCare Minnesota                                   1440"]
["UCLA Health System","UCLA Health System                                ",4453,"UCLA Health System                                4453"]
["UHP","UHP                                               ",3316,"UHP                                               3316"]
["Underwriters Services Corporation","Underwriters Services Corporation                 ",5492,"Underwriters Services Corporation                 5492"]
["Unilens","Unilens                                           ",1552,"Unilens                                           1552"]
["Unison Administrative Services, LLC.","Unison Administrative Services, LLC.              ",1421,"Unison Administrative Services, LLC.              1421"]
["UNITE HERE HEALTH","UNITE HERE HEALTH                                 ",1278,"UNITE HERE HEALTH                                 1278"]
["United Healthcare Plan of River Valley, Inc., fka","United Healthcare Plan of River Valley, Inc., fka ",1353,"United Healthcare Plan of River Valley, Inc., fka 1353"]
["United Healthcare Services","United Healthcare Services                        ",1466,"United Healthcare Services                        1466"]
["United Medical Resources","United Medical Resources                          ",1004,"United Medical Resources                          1004"]
["United Resource Network","United Resource Network                           ",4086,"United Resource Network                           4086"]
["Univera Healthcare - WNY","Univera Healthcare - WNY                          ",1022,"Univera Healthcare - WNY                          1022"]
["Universal American Corp.","Universal American Corp.                          ",2517,"Universal American Corp.                          2517"]
["Universal Health Care Group, Inc.","Universal Health Care Group, Inc.                 ",3317,"Universal Health Care Group, Inc.                 3317"]
["University Health Alliance","University Health Alliance                        ",1032,"University Health Alliance                        1032"]
["University Physicians Healthcare","University Physicians Healthcare                  ",3943,"University Physicians Healthcare                  3943"]
["UnumProvident Corporation","UnumProvident Corporation                         ",1796,"UnumProvident Corporation                         1796"]
["UPMC Health Plan","UPMC Health Plan                                  ",3343,"UPMC Health Plan                                  3343"]
["Upper Peninsula Health Plan","Upper Peninsula Health Plan                       ",1053,"Upper Peninsula Health Plan                       1053"]
["US Imaging Network","US Imaging Network                                ",3923,"US Imaging Network                                3923"]
["USAA Life Insurance Co.","USAA Life Insurance Co.                           ",1069,"USAA Life Insurance Co.                           1069"]
["ValueOptions","ValueOptions                                      ",4126,"ValueOptions                                      4126"]
["Vantage Health Plan","Vantage Health Plan                               ",3318,"Vantage Health Plan                               3318"]
["Vista Health Plan",{"$f":"A580&REPT(\" \",(50-LEN(A580)))","v":"Vista Health Plan                                 "},3319,"Vista Health Plan                                 3319"]
["Vitamedica, S.A. de C.V.","Vitamedica, S.A. de C.V.                          ",1413,{"$f":"B581&C581","v":"Vitamedica, S.A. de C.V.                          1413"}]
["VNS Choice","VNS Choice                                        ",4349,"VNS Choice                                        4349"]
["Volusia Health Network","Volusia Health Network                            ",4367,"Volusia Health Network                            4367"]
["WEA Trust","WEA Trust                                         ",3488,"WEA Trust                                         3488"]
["Wellcare","Wellcare                                          ",3402,"Wellcare                                          3402"]
["Wellmark, Inc.","Wellmark, Inc.                                    ",6155,"Wellmark, Inc.                                    6155"]
["Wellpoint","Wellpoint                                         ",1460,"Wellpoint                                         1460"]
["Wellpoint","Wellpoint                                         ",2317,"Wellpoint                                         2317"]
["Wells Fargo Third Party Administrators, Inc.","Wells Fargo Third Party Administrators, Inc.      ",1357,"Wells Fargo Third Party Administrators, Inc.      1357"]
["Western & Southern Life Inc.","Western & Southern Life Inc.                      ",1408,"Western & Southern Life Inc.                      1408"]
["Western Health Advantage","Western Health Advantage                          ",1304,"Western Health Advantage                          1304"]
["Western Health, Inc.","Western Health, Inc.                              ",1398,"Western Health, Inc.                              1398"]
["Windsor Management Services","Windsor Management Services                       ",3403,"Windsor Management Services                       3403"]
["Wisconsin Physicians Service Insurance Corporation","Wisconsin Physicians Service Insurance Corporation",4832,"Wisconsin Physicians Service Insurance Corporation4832"]
["WMI Mutual Insurance Company","WMI Mutual Insurance Company                      ",1306,"WMI Mutual Insurance Company                      1306"]
["WPMI, LLC","WPMI, LLC                                         ",3422,"WPMI, LLC                                         3422"]
["XL Health","XL Health                                         ",4267,"XL Health                                         4267"]
["Yakima Valley Farm Workers Clinic","Yakima Valley Farm Workers Clinic                 ",5448,"Yakima Valley Farm Workers Clinic                 5448"]
["Zenith Administrators Inc","Zenith Administrators Inc                         ",3121,"Zenith Administrators Inc                         3121"]

{"sheet":"Sheet2","index":1,"n_rows":599,"n_cols":5,"rows_kept":599,"cut":false,"hidden":false,"merged":[]}
["Customer","Customer ID"]
["1199 SEIU",3262,{"$f":"A2&REPT(\" \",50 - LEN(A2))&B2","v":"1199 SEIU                                         3262"},"1199 SEIU                                         3262",{"$f":"LEN(D2)","v":54}]
["A&G HealthCare Services, LLC",1896,"A&G HealthCare Services, LLC                      1896","A&G HealthCare Services, LLC                      1896",{"$f":"LEN(D3)","v":54}]
["Abrazo Health Care",6196,"Abrazo Health Care                                6196","Abrazo Health Care                                6196",54]
["Accenture LLP - Cigna",3764,"Accenture LLP - Cigna                             3764","Accenture LLP - Cigna                             3764",54]
["Accenture LLP- Aetna",3763,"Accenture LLP- Aetna                              3763","Accenture LLP- Aetna                              3763",54]
["Accuro Healthcare Solutions",3963,"Accuro Healthcare Solutions                       3963","Accuro Healthcare Solutions                       3963",54]
["ACS, Inc.",1084,"ACS, Inc.                                         1084","ACS, Inc.                                         1084",54]
["Adaptis, Inc.",3443,"Adaptis, Inc.                                     3443","Adaptis, Inc.                                     3443",54]
["Administrative Concepts",1088,"Administrative Concepts                           1088","Administrative Concepts                           1088",54]
["Administrative Services Group Inc.",1090,"Administrative Services Group Inc.                1090","Administrative Services Group Inc.                1090",54]
["Administrative System Research Corp.",1086,"Administrative System Research Corp.              1086","Administrative System Research Corp.              1086",54]
["Advance Insurance Co.",1099,"Advance Insurance Co.                             1099","Advance Insurance Co.                             1099",54]
["Advanced Benefit Solutions",1144,"Advanced Benefit Solutions                        1144","Advanced Benefit Solutions                        1144",54]
["Advanced Business Fulfillment",2016,"Advanced Business Fulfillment                     2016","Advanced Business Fulfillment                     2016",54]
["Advicare, Corp.",6215,"Advicare, Corp.                                   6215","Advicare, Corp.                                   6215",54]
["Aegon Special Markets Group",1153,"Aegon Special Markets Group                       1153","Aegon Special Markets Group                       1153",54]
["Aetna, Inc",3221,"Aetna, Inc                                        3221","Aetna, Inc                                        3221",54]
["Affinity",3445,"Affinity                                          3445","Affinity                                          3445",54]
["Affinity Health Plan",2879,"Affinity Health Plan                              2879","Affinity Health Plan                              2879",54]
["Allied Benefit Systems Inc.",1180,"Allied Benefit Systems Inc.                       1180","Allied Benefit Systems Inc.                       1180",54]
["Allocations",1776,"Allocations                                       1776","Allocations                                       1776",54]
["AlohaCare",3447,"AlohaCare                                         3447","AlohaCare                                         3447",54]
["Amalgamated Life Insurance Company",1204,"Amalgamated Life Insurance Company                1204","Amalgamated Life Insurance Company                1204",54]
["AmeraPlan, Inc.",5432,"AmeraPlan, Inc.                                   5432","AmeraPlan, Inc.                                   5432",54]
["America's Choice Healthplan, LLC",2357,"America's Choice Healthplan, LLC                  2357","America's Choice Healthplan, LLC                  2357",54]
["America's TPA",5436,"America's TPA                                     5436","America's TPA                                     5436",54]
["American Benefit Admin Svc Inc.",1249,"American Benefit Admin Svc Inc.                   1249","American Benefit Admin Svc Inc.                   1249",54]
["American Capital Insurance Co.",1252,"American Capital Insurance Co.                    1252","American Capital Insurance Co.                    1252",54]
["American Commercial Barge  Lines LLC",1255,"American Commercial Barge  Lines LLC              1255","American Commercial Barge  Lines LLC              1255",54]
["American Community Mutual Insurance Company",5675,"American Community Mutual Insurance Company       5675","American Community Mutual Insurance Company       5675",54]
["American Health Data Institute, Inc.",4711,"American Health Data Institute, Inc.              4711","American Health Data Institute, Inc.              4711",54]
["American Medical Security Inc.",1598,"American Medical Security Inc.                    1598","American Medical Security Inc.                    1598",54]
["American National Insurance  Co.",1482,"American National Insurance  Co.                  1482","American National Insurance  Co.                  1482",54]
["American Pioneer Life Insurance Co.",1291,"American Pioneer Life Insurance Co.               1291","American Pioneer Life Insurance Co.               1291",54]
["American Postal Workers Union Health Plan",6195,"American Postal Workers Union Health Plan         6195","American Postal Workers Union Health Plan         6195",54]
["American Trust Administrators, Inc.",1464,"American Trust Administrators, Inc.               1464","American Trust Administrators, Inc.               1464",54]
["Amerigroup Corp.",1576,"Amerigroup Corp.                                  1576","Amerigroup Corp.                                  1576",54]
["Amerisight, Inc.",2237,"Amerisight, Inc.                                  2237","Amerisight, Inc.                                  2237",54]
["APS Healthcare Inc.",1379,"APS Healthcare Inc.                               1379","APS Healthcare Inc.                               1379",54]
["Aptiv Technology Partners",3504,"Aptiv Technology Partners                         3504","Aptiv Technology Partners                         3504",54]
["Arcadian Health Plan",6015,"Arcadian Health Plan                              6015","Arcadian Health Plan                              6015",54]
["ARCORP, LLC (aka ARC Services)",5916,"ARCORP, LLC (aka ARC Services)                    5916","ARCORP, LLC (aka ARC Services)                    5916",54]
["Arkansas Blue Cross Blue Shield",4127,"Arkansas Blue Cross Blue Shield                   4127","Arkansas Blue Cross Blue Shield                   4127",54]
["Associated Administrators Inc.",1385,"Associated Administrators Inc.                    1385","Associated Administrators Inc.                    1385",54]
["Association & Society Insurance Corporation",5434,"Association & Society Insurance Corporation       5434","Association & Society Insurance Corporation       5434",54]
["Association Services of Washington",1463,"Association Services of Washington                1463","Association Services of Washington                1463",54]
["Assurant, Inc.",1355,"Assurant, Inc.                                    1355","Assurant, Inc.                                    1355",54]
["Aultcare Corp.",1465,"Aultcare Corp.                                    1465","Aultcare Corp.                                    1465",54]
["Automated Group Administration",1467,"Automated Group Administration                    1467","Automated Group Administration                    1467",54]
["Auxiant",1226,"Auxiant                                           1226","Auxiant                                           1226",54]
["Aveta, Inc",3342,"Aveta, Inc                                        3342","Aveta, Inc                                        3342",54]
["AvMed, Inc",3264,"AvMed, Inc                                        3264","AvMed, Inc                                        3264",54]
["AZ Dept. of Economic Security",3448,"AZ Dept. of Economic Security                     3448","AZ Dept. of Economic Security                     3448",54]
["Beacon Laboratory Benefit Solutions Inc",5575,"Beacon Laboratory Benefit Solutions Inc           5575","Beacon Laboratory Benefit Solutions Inc           5575",54]
["Beam Partners",3242,"Beam Partners                                     3242","Beam Partners                                     3242",54]
["Beech Street Corp.",1479,"Beech Street Corp.                                1479","Beech Street Corp.                                1479",54]
["Benefit Administrative Systems",1027,"Benefit Administrative Systems                    1027","Benefit Administrative Systems                    1027",54]
["Benefit Informatics, Inc.",3623,"Benefit Informatics, Inc.                         3623","Benefit Informatics, Inc.                         3623",54]
["Benefit Informatics, Inc. - BA",4857,"Benefit Informatics, Inc. - BA                    4857","Benefit Informatics, Inc. - BA                    4857",54]
["Benefit Management Systems Inc.",1030,"Benefit Management Systems Inc.                   1030","Benefit Management Systems Inc.                   1030",54]
["Benefit Plan Administrators-VA",1192,"Benefit Plan Administrators-VA                    1192","Benefit Plan Administrators-VA                    1192",54]
["Benefit Plan Management",1040,"Benefit Plan Management                           1040","Benefit Plan Management                           1040",54]
["Benemax",1396,"Benemax                                           1396","Benemax                                           1396",54]
["Benesight",1043,"Benesight                                         1043","Benesight                                         1043",54]
["Best Doctors",1055,{"$f":"A66&REPT(\" \",50 - LEN(A66))&B66","v":"Best Doctors                                      1055"},"Best Doctors                                      1055",54]
["Beverly Enterprises, Inc.",1060,"Beverly Enterprises, Inc.                         1060","Beverly Enterprises, Inc.                         1060",{"$f":"LEN(D67)","v":54}]
["Blue Care Network of Michigan",1073,"Blue Care Network of Michigan                     1073","Blue Care Network of Michigan                     1073",54]
["Blue Cross and Blue Shield of Florida",4327,"Blue Cross and Blue Shield of Florida             4327","Blue Cross and Blue Shield of Florida             4327",54]
["Blue Cross and Blue Shield of VT",1656,"Blue Cross and Blue Shield of VT                  1656","Blue Cross and Blue Shield of VT                  1656",54]
["Blue Cross Blue Shield Association",4531,"Blue Cross Blue Shield Association                4531","Blue Cross Blue Shield Association                4531",54]
["Blue Cross Blue Shield of AL",3222,"Blue Cross Blue Shield of AL                      3222","Blue Cross Blue Shield of AL                      3222",54]
["Blue Cross Blue Shield of AZ",1470,"Blue Cross Blue Shield of AZ                      1470","Blue Cross Blue Shield of AZ                      1470",54]
["Blue Cross Blue Shield of KC",1471,"Blue Cross Blue Shield of KC                      1471","Blue Cross Blue Shield of KC                      1471",54]
["Blue Cross Blue Shield of LA",1075,"Blue Cross Blue Shield of LA                      1075","Blue Cross Blue Shield of LA                      1075",54]
["Blue Cross Blue Shield of MI",1079,"Blue Cross Blue Shield of MI                      1079","Blue Cross Blue Shield of MI                      1079",54]
["Blue Cross Blue Shield of MN",1082,"Blue Cross Blue Shield of MN                      1082","Blue Cross Blue Shield of MN                      1082",54]
["Blue Cross Blue Shield of MO",1473,"Blue Cross Blue Shield of MO                      1473","Blue Cross Blue Shield of MO                      1473",54]
["Blue Cross Blue Shield of MT",3449,"Blue Cross Blue Shield of MT                      3449","Blue Cross Blue Shield of MT                      3449",54]
["Blue Cross Blue Shield of North Carolina",4631,"Blue Cross Blue Shield of North Carolina          4631","Blue Cross Blue Shield of North Carolina          4631",54]
["Blue Cross Blue Shield of OK",1077,"Blue Cross Blue Shield of OK                      1077","Blue Cross Blue Shield of OK                      1077",54]
["Blue Cross Blue Shield of RI",3843,"Blue Cross Blue Shield of RI                      3843","Blue Cross Blue Shield of RI                      3843",54]
["Blue Cross Blue Shield of TN",1477,"Blue Cross Blue Shield of TN                      1477","Blue Cross Blue Shield of TN                      1477",54]
["Blue Cross North Eastern PA",1098,"Blue Cross North Eastern PA                       1098","Blue Cross North Eastern PA                       1098",54]
["Blue Cross of ID",1107,"Blue Cross of ID                                  1107","Blue Cross of ID                                  1107",54]
["Blue Shield of California",3201,"Blue Shield of California                         3201","Blue Shield of California                         3201",54]
["Boilermakers National H&W Fund",1131,"Boilermakers National H&W Fund                    1131","Boilermakers National H&W Fund                    1131",54]
["Boston Medical Center Health Plan",1135,"Boston Medical Center Health Plan                 1135","Boston Medical Center Health Plan                 1135",54]
["Bravo Health",3467,"Bravo Health                                      3467","Bravo Health                                      3467",54]
["Bridgestone/Firestone Inc.",1151,"Bridgestone/Firestone Inc.                        1151","Bridgestone/Firestone Inc.                        1151",54]
["Bristol Park Medical Management",3823,"Bristol Park Medical Management                   3823","Bristol Park Medical Management                   3823",54]
["CalOptima",1481,"CalOptima                                         1481","CalOptima                                         1481",54]
["CAM Administrative Service, Inc.",1513,"CAM Administrative Service, Inc.                  1513","CAM Administrative Service, Inc.                  1513",54]
["Cambia Health Solutions, Inc",1410,"Cambia Health Solutions, Inc                      1410","Cambia Health Solutions, Inc                      1410",54]
["Canadian Medical Network, Inc.",5439,"Canadian Medical Network, Inc.                    5439","Canadian Medical Network, Inc.                    5439",54]
["Capario",5437,"Capario                                           5437","Capario                                           5437",54]
["Capital Administrators/FHPA",1171,"Capital Administrators/FHPA                       1171","Capital Administrators/FHPA                       1171",54]
["Capital Blue Cross",1174,"Capital Blue Cross                                1174","Capital Blue Cross                                1174",54]
["Capital District Physicians Health Plan",1202,"Capital District Physicians Health Plan           1202","Capital District Physicians Health Plan           1202",54]
["Capital Health Plan, Inc.",3450,"Capital Health Plan, Inc.                         3450","Capital Health Plan, Inc.                         3450",54]
["Capstone Health Plan, Inc.",3451,"Capstone Health Plan, Inc.                        3451","Capstone Health Plan, Inc.                        3451",54]
["Care 1st Health Plan",3266,"Care 1st Health Plan                              3266","Care 1st Health Plan                              3266",54]
["Care Improvement Plus",4266,"Care Improvement Plus                             4266","Care Improvement Plus                             4266",54]
["Care Wisconsin Health Plan, Inc",4383,"Care Wisconsin Health Plan, Inc                   4383","Care Wisconsin Health Plan, Inc                   4383",54]
["Care1st Health Plan Arizona, Inc",6017,"Care1st Health Plan Arizona, Inc                  6017","Care1st Health Plan Arizona, Inc                  6017",54]
["CareAssist, Inc. dba The Assist Group, Inc.",5433,"CareAssist, Inc. dba The Assist Group, Inc.       5433","CareAssist, Inc. dba The Assist Group, Inc.       5433",54]
["CareFirst Blue Cross Blue Shield",1179,"CareFirst Blue Cross Blue Shield                  1179","CareFirst Blue Cross Blue Shield                  1179",54]
["Careington International Corp.",5440,"Careington International Corp.                    5440","Careington International Corp.                    5440",54]
["Caremark",1534,"Caremark                                          1534","Caremark                                          1534",54]
["Caremark Rx, LLC",5935,"Caremark Rx, LLC                                  5935","Caremark Rx, LLC                                  5935",54]
["CareMore Medical Enterprises",4007,"CareMore Medical Enterprises                      4007","CareMore Medical Enterprises                      4007",54]
["CareOregon, Inc",3452,"CareOregon, Inc                                   3452","CareOregon, Inc                                   3452",54]
["CareSource Inc.",1181,"CareSource Inc.                                   1181","CareSource Inc.                                   1181",54]
["Carpenters Health & Welfare Fund",3462,"Carpenters Health & Welfare Fund                  3462","Carpenters Health & Welfare Fund                  3462",54]
["Caterpillar Inc.",1189,"Caterpillar Inc.                                  1189","Caterpillar Inc.                                  1189",54]
["CBCA Administrators",1096,"CBCA Administrators                               1096","CBCA Administrators                               1096",54]
["CC Systems Corp.",1116,"CC Systems Corp.                                  1116","CC Systems Corp.                                  1116",54]
["CEBT",4471,"CEBT                                              4471","CEBT                                              4471",54]
["CECHP",1121,"CECHP                                             1121","CECHP                                             1121",54]
["Centene Corporation",4412,"Centene Corporation                               4412","Centene Corporation                               4412",54]
["CenterLight Healthcare, Inc",6115,"CenterLight Healthcare, Inc                       6115","CenterLight Healthcare, Inc                       6115",54]
["Central Benefits Mutual Insurance",1182,"Central Benefits Mutual Insurance                 1182","Central Benefits Mutual Insurance                 1182",54]
["Central Coast Alliance of Health, Inc.",5438,"Central Coast Alliance of Health, Inc.            5438","Central Coast Alliance of Health, Inc.            5438",54]
["Central Health Plan of CA",4414,"Central Health Plan of CA                         4414","Central Health Plan of CA                         4414",54]
["Central States Joint Board",1188,"Central States Joint Board                        1188","Central States Joint Board                        1188",54]
["Central States Welfare Fund",1191,"Central States Welfare Fund                       1191","Central States Welfare Fund                       1191",54]
["Chart-Tech Inc.",5493,"Chart-Tech Inc.                                   5493","Chart-Tech Inc.                                   5493",54]
["CHCS Services",3643,"CHCS Services                                     3643","CHCS Services                                     3643",54]
["Chesterfield Companies",1976,"Chesterfield Companies                            1976","Chesterfield Companies                            1976",54]
["Chinese Community Health Plan",3803,{"$f":"A130&REPT(\" \",50 - LEN(A130))&B130","v":"Chinese Community Health Plan                     3803"},"Chinese Community Health Plan                     3803",54]
["CHP Group",5014,"CHP Group                                         5014","CHP Group                                         5014",{"$f":"LEN(D131)","v":54}]
["Christian Care Ministry, Inc.",5449,"Christian Care Ministry, Inc.                     5449","Christian Care Ministry, Inc.                     5449",54]
["CIGNA",1856,"CIGNA                                             1856","CIGNA                                             1856",54]
["CIGNA",2177,"CIGNA                                             2177","CIGNA                                             2177",54]
["Cincom Systems, Inc.",3766,"Cincom Systems, Inc.                              3766","Cincom Systems, Inc.                              3766",54]
["Citrus Health Care, Inc.",4006,"Citrus Health Care, Inc.                          4006","Citrus Health Care, Inc.                          4006",54]
["City of Wichita",1220,"City of Wichita                                   1220","City of Wichita                                   1220",54]
["ClaimCare Inc",6295,"ClaimCare Inc                                     6295","ClaimCare Inc                                     6295",54]
["Clarian Health Plan",4166,"Clarian Health Plan                               4166","Clarian Health Plan                               4166",54]
["Clear One",4571,"Clear One                                         4571","Clear One                                         4571",54]
["CNIC Health Solutions, Inc.",1213,"CNIC Health Solutions, Inc.                       1213","CNIC Health Solutions, Inc.                       1213",54]
["Co-ordinated Benefit Plans, LLC",5092,"Co-ordinated Benefit Plans, LLC                   5092","Co-ordinated Benefit Plans, LLC                   5092",54]
["Coalition America Inc.",1272,"Coalition America Inc.                            1272","Coalition America Inc.                            1272",54]
["Coast Benefit",1284,"Coast Benefit                                     1284","Coast Benefit                                     1284",54]
["Colonial Benefits",1274,"Colonial Benefits                                 1274","Colonial Benefits                                 1274",54]
["Colorado Access",1280,"Colorado Access                                   1280","Colorado Access                                   1280",54]
["Columbia United Providers, Inc.",5875,"Columbia United Providers, Inc.                   5875","Columbia United Providers, Inc.                   5875",54]
["Community Health Choice, Inc.",5252,"Community Health Choice, Inc.                     5252","Community Health Choice, Inc.                     5252",54]
["Community Health Group",5835,"Community Health Group                            5835","Community Health Group                            5835",54]
["Community Health Plan of Washington",3767,"Community Health Plan of Washington               3767","Community Health Plan of Washington               3767",54]
["Comp Benefits Corp.",1299,"Comp Benefits Corp.                               1299","Comp Benefits Corp.                               1299",54]
["Companhia Portuguesa de Seguros de Saude, S.A.",1308,"Companhia Portuguesa de Seguros de Saude, S.A.    1308","Companhia Portuguesa de Seguros de Saude, S.A.    1308",54]
["Complete Benefit Solutions",1310,"Complete Benefit Solutions                        1310","Complete Benefit Solutions                        1310",54]
["Comprehensive Health Management, Inc",3267,"Comprehensive Health Management, Inc              3267","Comprehensive Health Management, Inc              3267",54]
["Computer Science Corporation",3141,"Computer Science Corporation                      3141","Computer Science Corporation                      3141",54]
["Concert Third Party Administrators, LLC",5615,"Concert Third Party Administrators, LLC           5615","Concert Third Party Administrators, LLC           5615",54]
["Connecticut Carpenters Health Fund",1390,"Connecticut Carpenters Health Fund                1390","Connecticut Carpenters Health Fund                1390",54]
["Consolidated Services Group",5013,"Consolidated Services Group                       5013","Consolidated Services Group                       5013",54]
["Contra Costa Health Services",1335,"Contra Costa Health Services                      1335","Contra Costa Health Services                      1335",54]
["Convey Compliance Systems Inc - Regional",5134,"Convey Compliance Systems Inc - Regional          5134","Convey Compliance Systems Inc - Regional          5134",54]
["Cook Children's Health Plan",6255,"Cook Children's Health Plan                       6255","Cook Children's Health Plan                       6255",54]
["Cooperative Systems Solutions",3464,"Cooperative Systems Solutions                     3464","Cooperative Systems Solutions                     3464",54]
["Coordinated Care Solutions",3463,"Coordinated Care Solutions                        3463","Coordinated Care Solutions                        3463",54]
["Coresource",1340,"Coresource                                        1340","Coresource                                        1340",54]
["Corizon, Inc.",4003,"Corizon, Inc.                                     4003","Corizon, Inc.                                     4003",54]
["Corporate System Administrators",1346,"Corporate System Administrators                   1346","Corporate System Administrators                   1346",54]
["Cost Containment USA",1351,"Cost Containment USA                              1351","Cost Containment USA                              1351",54]
["Cosvi",1368,"Cosvi                                             1368","Cosvi                                             1368",54]
["Country Life Insurance Co.",1362,"Country Life Insurance Co.                        1362","Country Life Insurance Co.                        1362",54]
["Countrywide Care Services",1371,"Countrywide Care Services                         1371","Countrywide Care Services                         1371",54]
["County of Ventura",5362,"County of Ventura                                 5362","County of Ventura                                 5362",54]
["Cox Health Plans",3465,"Cox Health Plans                                  3465","Cox Health Plans                                  3465",54]
["Cox HealthPlans, LLC",3769,"Cox HealthPlans, LLC                              3769","Cox HealthPlans, LLC                              3769",54]
["Creative Plan Administrators, LLC",2778,"Creative Plan Administrators, LLC                 2778","Creative Plan Administrators, LLC                 2778",54]
["Croy Hall Management, Inc",1384,"Croy Hall Management, Inc                         1384","Croy Hall Management, Inc                         1384",54]
["CSEA Employee Benefit Fund",1418,"CSEA Employee Benefit Fund                        1418","CSEA Employee Benefit Fund                        1418",54]
["DaVita Village Health, Inc",3562,"DaVita Village Health, Inc                        3562","DaVita Village Health, Inc                        3562",54]
["dbMotion",5441,"dbMotion                                          5441","dbMotion                                          5441",54]
["Delta Dental of California",1404,"Delta Dental of California                        1404","Delta Dental of California                        1404",54]
["DeniServ, LLC",3771,"DeniServ, LLC                                     3771","DeniServ, LLC                                     3771",54]
["Denver Health Medical Plan, Inc",6075,"Denver Health Medical Plan, Inc                   6075","Denver Health Medical Plan, Inc                   6075",54]
["District No. 9.1.A. of M. & A.W.",1006,"District No. 9.1.A. of M. & A.W.                  1006","District No. 9.1.A. of M. & A.W.                  1006",54]
["Diversified Administration",1013,"Diversified Administration                        1013","Diversified Administration                        1013",54]
["Diversified Group Administrators, Inc.",1025,"Diversified Group Administrators, Inc.            1025","Diversified Group Administrators, Inc.            1025",54]
["Ebix, Inc.",5442,"Ebix, Inc.                                        5442","Ebix, Inc.                                        5442",54]
["Echo Health Inc",4391,"Echo Health Inc                                   4391","Echo Health Inc                                   4391",54]
["Echo Health Inc - BA",4932,"Echo Health Inc - BA                              4932","Echo Health Inc - BA                              4932",54]
["Echo Health Inc - BCBS",4863,"Echo Health Inc - BCBS                            4863","Echo Health Inc - BCBS                            4863",54]
["eHealth Partners",3505,"eHealth Partners                                  3505","eHealth Partners                                  3505",54]
["El Paso First",3466,"El Paso First                                     3466","El Paso First                                     3466",54]
["Elderplan",3284,"Elderplan                                         3284","Elderplan                                         3284",54]
["Eliza Corporation-BCBS",5796,"Eliza Corporation-BCBS                            5796","Eliza Corporation-BCBS                            5796",54]
["Elmco LLC",1110,"Elmco LLC                                         1110","Elmco LLC                                         1110",54]
["Elsevier",1487,{"$f":"A194&REPT(\" \",50 - LEN(A194))&B194","v":"Elsevier                                          1487"},"Elsevier                                          1487",54]
["Elsevier - Emerging",5955,"Elsevier - Emerging                               5955","Elsevier - Emerging                               5955",{"$f":"LEN(D195)","v":54}]
["EmblemHealth Inc.",5333,"EmblemHealth Inc.                                 5333","EmblemHealth Inc.                                 5333",54]
["Emdeon Business Services",3775,"Emdeon Business Services                          3775","Emdeon Business Services                          3775",54]
["Emdeon Business Services - BA",4853,"Emdeon Business Services - BA                     4853","Emdeon Business Services - BA                     4853",54]
["Emdeon Business Services - BCBS",4896,"Emdeon Business Services - BCBS                   4896","Emdeon Business Services - BCBS                   4896",54]
["Emdeon Business Services - Emerging",4854,"Emdeon Business Services - Emerging               4854","Emdeon Business Services - Emerging               4854",54]
["Emdeon Business Services - National",4855,"Emdeon Business Services - National               4855","Emdeon Business Services - National               4855",54]
["Emdeon Business Services - Regional",4856,"Emdeon Business Services - Regional               4856","Emdeon Business Services - Regional               4856",54]
["Emdeon Corporation",1916,"Emdeon Corporation                                1916","Emdeon Corporation                                1916",54]
["Empire Blue Cross Blue Shield",3285,"Empire Blue Cross Blue Shield                     3285","Empire Blue Cross Blue Shield                     3285",54]
["Employee Benefit Consultants, Inc.",1120,"Employee Benefit Consultants, Inc.                1120","Employee Benefit Consultants, Inc.                1120",54]
["Employee Benefit Management Corp.",1125,"Employee Benefit Management Corp.                 1125","Employee Benefit Management Corp.                 1125",54]
["Employee Benefit Services, Inc.",1132,"Employee Benefit Services, Inc.                   1132","Employee Benefit Services, Inc.                   1132",54]
["Employers Mutual, LLC Thomas A. Dillion, Independe",2158,"Employers Mutual, LLC Thomas A. Dillion, Independe2158","Employers Mutual, LLC Thomas A. Dillion, Independe2158",54]
["EPIC Managment, LP",1157,"EPIC Managment, LP                                1157","EPIC Managment, LP                                1157",54]
["Epoch Group, LC",1164,"Epoch Group, LC                                   1164","Epoch Group, LC                                   1164",54]
["Essence Health",1253,"Essence Health                                    1253","Essence Health                                    1253",54]
["Evolution Benefits",3772,"Evolution Benefits                                3772","Evolution Benefits                                3772",54]
["Excellus Health Plan",1267,"Excellus Health Plan                              1267","Excellus Health Plan                              1267",54]
["Express Scripts, Inc",3286,"Express Scripts, Inc                              3286","Express Scripts, Inc                              3286",54]
["EyeMed Vision Care",5072,"EyeMed Vision Care                                5072","EyeMed Vision Care                                5072",54]
["F. A. Richard & Associates",1276,"F. A. Richard & Associates                        1276","F. A. Richard & Associates                        1276",54]
["FairPay Solutions",3000,"FairPay Solutions                                 3000","FairPay Solutions                                 3000",54]
["Fallon Community Health Plan",1290,"Fallon Community Health Plan                      1290","Fallon Community Health Plan                      1290",54]
["Family Health Network",5514,"Family Health Network                             5514","Family Health Network                             5514",54]
["Federated  Mutual Insurance Companies",1319,"Federated  Mutual Insurance Companies             1319","Federated  Mutual Insurance Companies             1319",54]
["Fidelis Care N.Y.",1323,"Fidelis Care N.Y.                                 1323","Fidelis Care N.Y.                                 1323",54]
["First Consulting Group",3773,"First Consulting Group                            3773","First Consulting Group                            3773",54]
["First Health Group Corp.",1329,"First Health Group Corp.                          1329","First Health Group Corp.                          1329",54]
["Fiserv Health",3287,"Fiserv Health                                     3287","Fiserv Health                                     3287",54]
["FlexTech",3506,"FlexTech                                          3506","FlexTech                                          3506",54]
["Florida Health Administrators, Inc.",4791,"Florida Health Administrators, Inc.               4791","Florida Health Administrators, Inc.               4791",54]
["Florida Health Care Plans",3824,"Florida Health Care Plans                         3824","Florida Health Care Plans                         3824",54]
["Florida Health Plan Administrators, L.L.C",2697,"Florida Health Plan Administrators, L.L.C         2697","Florida Health Plan Administrators, L.L.C         2697",54]
["Florida Healthcare Plus, Inc.",5513,"Florida Healthcare Plus, Inc.                     5513","Florida Healthcare Plus, Inc.                     5513",54]
["Ford Meter Box Company, Inc.",1370,"Ford Meter Box Company, Inc.                      1370","Ford Meter Box Company, Inc.                      1370",54]
["Forsythe Solutions Group, Inc.",4025,"Forsythe Solutions Group, Inc.                    4025","Forsythe Solutions Group, Inc.                    4025",54]
["Fringe Benefits Management",1223,"Fringe Benefits Management                        1223","Fringe Benefits Management                        1223",54]
["Fringe Benefits Services",1485,"Fringe Benefits Services                          1485","Fringe Benefits Services                          1485",54]
["Future Vision",3774,"Future Vision                                     3774","Future Vision                                     3774",54]
["GA Department of Community Health",6019,"GA Department of Community Health                 6019","GA Department of Community Health                 6019",54]
["Galaxy Health Network",1386,"Galaxy Health Network                             1386","Galaxy Health Network                             1386",54]
["Gateway EDI",5715,"Gateway EDI                                       5715","Gateway EDI                                       5715",54]
["Gateway Health Plan",3288,"Gateway Health Plan                               3288","Gateway Health Plan                               3288",54]
["Geisinger Health Plan",4873,"Geisinger Health Plan                             4873","Geisinger Health Plan                             4873",54]
["Genworth Financial / Employee Benefits Group",1381,"Genworth Financial / Employee Benefits Group      1381","Genworth Financial / Employee Benefits Group      1381",54]
["Global Care",2577,"Global Care                                       2577","Global Care                                       2577",54]
["Global Excel Management, Inc.",4651,"Global Excel Management, Inc.                     4651","Global Excel Management, Inc.                     4651",54]
["Government Employees Hospital Association",1416,"Government Employees Hospital Association         1416","Government Employees Hospital Association         1416",54]
["Grant Physicians Practice Association",1420,"Grant Physicians Practice Association             1420","Grant Physicians Practice Association             1420",54]
["Great Lakes Health Plan",1423,"Great Lakes Health Plan                           1423","Great Lakes Health Plan                           1423",54]
["Group Health Cooperative of Puget Sound",3290,"Group Health Cooperative of Puget Sound           3290","Group Health Cooperative of Puget Sound           3290",54]
["Group Insurance Service Center, Inc.",1430,"Group Insurance Service Center, Inc.              1430","Group Insurance Service Center, Inc.              1430",54]
["Guardian Life Ins.",1373,"Guardian Life Ins.                                1373","Guardian Life Ins.                                1373",54]
["Gunderson Lutheran, Inc",6016,"Gunderson Lutheran, Inc                           6016","Gunderson Lutheran, Inc                           6016",54]
["H.H.C. Group",1441,"H.H.C. Group                                      1441","H.H.C. Group                                      1441",54]
["Harrington Benefit Services",1005,"Harrington Benefit Services                       1005","Harrington Benefit Services                       1005",54]
["HCH Administration",1014,"HCH Administration                                1014","HCH Administration                                1014",54]
["Health Alliance  Plan of Michigan",4226,"Health Alliance  Plan of Michigan                 4226","Health Alliance  Plan of Michigan                 4226",54]
["Health Alliance Medical Plans",3292,"Health Alliance Medical Plans                     3292","Health Alliance Medical Plans                     3292",54]
["Health Care Service Corporation",2921,"Health Care Service Corporation                   2921","Health Care Service Corporation                   2921",54]
["Health Cost Solutions/WC Beeler",5341,"Health Cost Solutions/WC Beeler                   5341","Health Cost Solutions/WC Beeler                   5341",54]
["Health First Health Plans, Inc",3081,"Health First Health Plans, Inc                    3081","Health First Health Plans, Inc                    3081",54]
["Health Net of the Northeast",1676,{"$f":"A258&REPT(\" \",50 - LEN(A258))&B258","v":"Health Net of the Northeast                       1676"},"Health Net of the Northeast                       1676",54]
["Health New England",1101,"Health New England                                1101","Health New England                                1101",{"$f":"LEN(D259)","v":54}]
["Health Payment Systems, Inc.",4811,"Health Payment Systems, Inc.                      4811","Health Payment Systems, Inc.                      4811",54]
["Health Plan of Neveda",3294,"Health Plan of Neveda                             3294","Health Plan of Neveda                             3294",54]
["Health Plan of San Joaquin",4451,"Health Plan of San Joaquin                        4451","Health Plan of San Joaquin                        4451",54]
["Health Plan of the Redwoods",1104,"Health Plan of the Redwoods                       1104","Health Plan of the Redwoods                       1104",54]
["Health Plus Michigan",3583,"Health Plus Michigan                              3583","Health Plus Michigan                              3583",54]
["Health Plus PHSP",1242,"Health Plus PHSP                                  1242","Health Plus PHSP                                  1242",54]
["Health Services for Children with Special Needs In",1283,"Health Services for Children with Special Needs In1283","Health Services for Children with Special Needs In1283",54]
["Health Special Risk, Inc.",1111,"Health Special Risk, Inc.                         1111","Health Special Risk, Inc.                         1111",54]
["Healthcare Benefits, Inc.",1130,"Healthcare Benefits, Inc.                         1130","Healthcare Benefits, Inc.                         1130",54]
["Healthcare Group M-Plan",1555,"Healthcare Group M-Plan                           1555","Healthcare Group M-Plan                           1555",54]
["HealthCare Information Management-Emerging",5392,"HealthCare Information Management-Emerging        5392","HealthCare Information Management-Emerging        5392",54]
["HealthCare Information Mgt",3776,"HealthCare Information Mgt                        3776","HealthCare Information Mgt                        3776",54]
["Healthcare Insight",2537,"Healthcare Insight                                2537","Healthcare Insight                                2537",54]
["Healthcare Management Administrators",1136,"Healthcare Management Administrators              1136","Healthcare Management Administrators              1136",54]
["HealthFirst, Inc",3296,"HealthFirst, Inc                                  3296","HealthFirst, Inc                                  3296",54]
["HealthNetwork Systems LLC",1146,"HealthNetwork Systems LLC                         1146","HealthNetwork Systems LLC                         1146",54]
["HealthNow New York",1148,"HealthNow New York                                1148","HealthNow New York                                1148",54]
["HealthPartners",3297,"HealthPartners                                    3297","HealthPartners                                    3297",54]
["HealthPlan Services, Inc.",1194,"HealthPlan Services, Inc.                         1194","HealthPlan Services, Inc.                         1194",54]
["HealthScope Benefits",2919,"HealthScope Benefits                              2919","HealthScope Benefits                              2919",54]
["HealthSmart Benefit Solutions, Inc",1391,"HealthSmart Benefit Solutions, Inc                1391","HealthSmart Benefit Solutions, Inc                1391",54]
["HealthSpring Management, Inc",3298,"HealthSpring Management, Inc                      3298","HealthSpring Management, Inc                      3298",54]
["HealthSpring, Inc.",2418,"HealthSpring, Inc.                                2418","HealthSpring, Inc.                                2418",54]
["HealthTrans, LLC",3703,"HealthTrans, LLC                                  3703","HealthTrans, LLC                                  3703",54]
["Heartland Health System",1254,"Heartland Health System                           1254","Heartland Health System                           1254",54]
["Heritage Consultants, Inc.",5775,"Heritage Consultants, Inc.                        5775","Heritage Consultants, Inc.                        5775",54]
["Hewlett-Packard",3777,"Hewlett-Packard                                   3777","Hewlett-Packard                                   3777",54]
["HFN",4046,"HFN                                               4046","HFN                                               4046",54]
["HIP",3299,"HIP                                               3299","HIP                                               3299",54]
["HM Benefits Administrators Inc.",1257,"HM Benefits Administrators Inc.                   1257","HM Benefits Administrators Inc.                   1257",54]
["HMSA",3469,"HMSA                                              3469","HMSA                                              3469",54]
["Horizon Blue Cross Blue Shield of NJ",1268,"Horizon Blue Cross Blue Shield of NJ              1268","Horizon Blue Cross Blue Shield of NJ              1268",54]
["Hospital Benefits",1270,"Hospital Benefits                                 1270","Hospital Benefits                                 1270",54]
["Humana Inc.",1286,"Humana Inc.                                       1286","Humana Inc.                                       1286",54]
["Hunt Insurance Group",1289,"Hunt Insurance Group                              1289","Hunt Insurance Group                              1289",54]
["ILABLE","NOT AVAILABLE","ILABLE                                            NOT AVAILABLE","ILABLE                                            NOT AVAILABLE",63]
["Illinois Masonic Medical Center",1296,"Illinois Masonic Medical Center                   1296","Illinois Masonic Medical Center                   1296",54]
["Imperio Bonanca, S.A.",2858,"Imperio Bonanca, S.A.                             2858","Imperio Bonanca, S.A.                             2858",54]
["IMSCO Health Systems",2737,"IMSCO Health Systems                              2737","IMSCO Health Systems                              2737",54]
["Independence Blue Cross",5232,"Independence Blue Cross                           5232","Independence Blue Cross                           5232",54]
["Independent Care Health Plan",5112,"Independent Care Health Plan                      5112","Independent Care Health Plan                      5112",54]
["Independent Living Systems, LLC",6116,"Independent Living Systems, LLC                   6116","Independent Living Systems, LLC                   6116",54]
["Infocrossing",3101,"Infocrossing                                      3101","Infocrossing                                      3101",54]
["Infocrossing - BCBS",4892,"Infocrossing - BCBS                               4892","Infocrossing - BCBS                               4892",54]
["Infocrossing - Emerging",4895,"Infocrossing - Emerging                           4895","Infocrossing - Emerging                           4895",54]
["Infocrossing - National",4893,"Infocrossing - National                           4893","Infocrossing - National                           4893",54]
["Infocrossing - Regional",4894,"Infocrossing - Regional                           4894","Infocrossing - Regional                           4894",54]
["Infosys",3780,"Infosys                                           3780","Infosys                                           3780",54]
["Infosys - Government",5212,"Infosys - Government                              5212","Infosys - Government                              5212",54]
["Infosys - Regional",5213,"Infosys - Regional                                5213","Infosys - Regional                                5213",54]
["Ingenix Hospital Solution Group",4004,"Ingenix Hospital Solution Group                   4004","Ingenix Hospital Solution Group                   4004",54]
["Ingenix, Inc.",3041,"Ingenix, Inc.                                     3041","Ingenix, Inc.                                     3041",54]
["Ingenix, Inc. - BCBS",4858,"Ingenix, Inc. - BCBS                              4858","Ingenix, Inc. - BCBS                              4858",54]
["Ingenix, Inc. - Emerging",4859,"Ingenix, Inc. - Emerging                          4859","Ingenix, Inc. - Emerging                          4859",54]
["Ingenix, Inc. - Govt/Intl",5412,"Ingenix, Inc. - Govt/Intl                         5412","Ingenix, Inc. - Govt/Intl                         5412",54]
["Ingenix, Inc. - National",4860,"Ingenix, Inc. - National                          4860","Ingenix, Inc. - National                          4860",54]
["Ingenix, Inc. - Regional",4861,"Ingenix, Inc. - Regional                          4861","Ingenix, Inc. - Regional                          4861",54]
["Insurance & Benefit Advocates, Inc.",3663,"Insurance & Benefit Advocates, Inc.               3663","Insurance & Benefit Advocates, Inc.               3663",54]
["Insurance Administrative Solutions, LLC",1233,"Insurance Administrative Solutions, LLC           1233","Insurance Administrative Solutions, LLC           1233",54]
["Insurance Administrators of America",1317,"Insurance Administrators of America               1317","Insurance Administrators of America               1317",54]
["Integritas Benefit Group, LLC.",3021,"Integritas Benefit Group, LLC.                    3021","Integritas Benefit Group, LLC.                    3021",54]
["International Benefits Admin., LLC",4366,"International Benefits Admin., LLC                4366","International Benefits Admin., LLC                4366",54]
["International Subrogation Management - BA",4852,{"$f":"A322&REPT(\" \",50 - LEN(A322))&B322","v":"International Subrogation Management - BA         4852"},"International Subrogation Management - BA         4852",54]
["International Union of Operating Engineer Local 15",1717,"International Union of Operating Engineer Local 151717","International Union of Operating Engineer Local 151717",{"$f":"LEN(D323)","v":54}]
["International Union of Operating Engineers Local 4",1333,"International Union of Operating Engineers Local 41333","International Union of Operating Engineers Local 41333",54]
["Intervalley Health Plan",1331,"Intervalley Health Plan                           1331","Intervalley Health Plan                           1331",54]
["Ironworker Employees' Benefit Corporation",4432,"Ironworker Employees' Benefit Corporation         4432","Ironworker Employees' Benefit Corporation         4432",54]
["ISIS Solutions Inc.",1816,"ISIS Solutions Inc.                               1816","ISIS Solutions Inc.                               1816",54]
["IU Medical Group-Primary Care",3781,"IU Medical Group-Primary Care                     3781","IU Medical Group-Primary Care                     3781",54]
["JAS Inc.",1344,"JAS Inc.                                          1344","JAS Inc.                                          1344",54]
["John Muir / Mount Diablo Health Network",1636,"John Muir / Mount Diablo Health Network           1636","John Muir / Mount Diablo Health Network           1636",54]
["John P. Pearl & Associates Ltd.",1756,"John P. Pearl & Associates Ltd.                   1756","John P. Pearl & Associates Ltd.                   1756",54]
["Johns Hopkins",3425,"Johns Hopkins                                     3425","Johns Hopkins                                     3425",54]
["JPS Health Network",5272,"JPS Health Network                                5272","JPS Health Network                                5272",54]
["Kaiser Permanente",1011,"Kaiser Permanente                                 1011","Kaiser Permanente                                 1011",54]
["Kansas City Life Insurance",1020,"Kansas City Life Insurance                        1020","Kansas City Life Insurance                        1020",54]
["Kelsey Seybal",3683,"Kelsey Seybal                                     3683","Kelsey Seybal                                     3683",54]
["Key Benefits Inc.",1087,"Key Benefits Inc.                                 1087","Key Benefits Inc.                                 1087",54]
["Keystone Mercy Health Plan",1488,"Keystone Mercy Health Plan                        1488","Keystone Mercy Health Plan                        1488",54]
["Klais & Company Inc.",1103,"Klais & Company Inc.                              1103","Klais & Company Inc.                              1103",54]
["KS Plan Administrator",3883,"KS Plan Administrator                             3883","KS Plan Administrator                             3883",54]
["LA Care Health Plan",5371,"LA Care Health Plan                               5371","LA Care Health Plan                               5371",54]
["Lake County Physicians Assoc.",2457,"Lake County Physicians Assoc.                     2457","Lake County Physicians Assoc.                     2457",54]
["Liberty Health Advantage",3302,"Liberty Health Advantage                          3302","Liberty Health Advantage                          3302",54]
["Liberty Mutual",1123,"Liberty Mutual                                    1123","Liberty Mutual                                    1123",54]
["LifeWise Assurance Co.",1228,"LifeWise Assurance Co.                            1228","LifeWise Assurance Co.                            1228",54]
["Lipman Company Inc.",1128,"Lipman Company Inc.                               1128","Lipman Company Inc.                               1128",54]
["Lockard & Williams Insurance",1134,"Lockard & Williams Insurance                      1134","Lockard & Williams Insurance                      1134",54]
["Loma Linda University",1505,"Loma Linda University                             1505","Loma Linda University                             1505",54]
["London Health Administrators, Ltd.",1138,"London Health Administrators, Ltd.                1138","London Health Administrators, Ltd.                1138",54]
["Lovelace Health Plan",3303,"Lovelace Health Plan                              3303","Lovelace Health Plan                              3303",54]
["Macy's, Inc.",1282,"Macy's, Inc.                                      1282","Macy's, Inc.                                      1282",54]
["MagnaCare Administrative Services, LLC",3382,"MagnaCare Administrative Services, LLC            3382","MagnaCare Administrative Services, LLC            3382",54]
["Managed Care Administrators, Inc.",5334,"Managed Care Administrators, Inc.                 5334","Managed Care Administrators, Inc.                 5334",54]
["Managed Care Systems, LP",3470,"Managed Care Systems, LP                          3470","Managed Care Systems, LP                          3470",54]
["Mandalay Resort Group",1166,"Mandalay Resort Group                             1166","Mandalay Resort Group                             1166",54]
["MAPFRE Life Insurance Company",1160,"MAPFRE Life Insurance Company                     1160","MAPFRE Life Insurance Company                     1160",54]
["Martin's Point Health Care",4491,"Martin's Point Health Care                        4491","Martin's Point Health Care                        4491",54]
["McKesson Information Systems",3782,"McKesson Information Systems                      3782","McKesson Information Systems                      3782",54]
["McKesson Information Systems - BCBS",5053,"McKesson Information Systems - BCBS               5053","McKesson Information Systems - BCBS               5053",54]
["McKesson Information Systems - Emerging",4862,"McKesson Information Systems - Emerging           4862","McKesson Information Systems - Emerging           4862",54]
["McKesson Information Systems - National",5054,"McKesson Information Systems - National           5054","McKesson Information Systems - National           5054",54]
["McKesson Information Systems - Regional",5052,"McKesson Information Systems - Regional           5052","McKesson Information Systems - Regional           5052",54]
["McNulty Barber Marketing",1208,"McNulty Barber Marketing                          1208","McNulty Barber Marketing                          1208",54]
["MDCareAdvantage",4452,"MDCareAdvantage                                   4452","MDCareAdvantage                                   4452",54]
["Med Advantage",5443,"Med Advantage                                     5443","Med Advantage                                     5443",54]
["MED3OOO",3161,"MED3OOO                                           3161","MED3OOO                                           3161",54]
["Medical Benefits Administrators Inc.",1221,"Medical Benefits Administrators Inc.              1221","Medical Benefits Administrators Inc.              1221",54]
["Medical Data Express  LLC",3783,"Medical Data Express  LLC                         3783","Medical Data Express  LLC                         3783",54]
["Medical Mutual of Ohio",4186,"Medical Mutual of Ohio                            4186","Medical Mutual of Ohio                            4186",54]
["MediLinQ",3471,"MediLinQ                                          3471","MediLinQ                                          3471",54]
["Mediversal",1229,"Mediversal                                        1229","Mediversal                                        1229",54]
["MedSolutions, Inc.",3472,"MedSolutions, Inc.                                3472","MedSolutions, Inc.                                3472",54]
["MEGA Life & Health Insurance Company",1143,"MEGA Life & Health Insurance Company              1143","MEGA Life & Health Insurance Company              1143",54]
["Memorial Health System",1936,"Memorial Health System                            1936","Memorial Health System                            1936",54]
["Memorial Hospital",1239,"Memorial Hospital                                 1239","Memorial Hospital                                 1239",54]
["Memphis Light, Gas & Water Division",1241,"Memphis Light, Gas & Water Division               1241","Memphis Light, Gas & Water Division               1241",54]
["Mental Health Network",3473,"Mental Health Network                             3473","Mental Health Network                             3473",54]
["Merchants Benefits Administrators Inc.",1316,"Merchants Benefits Administrators Inc.            1316","Merchants Benefits Administrators Inc.            1316",54]
["Mercy Benefit Administrators",1141,"Mercy Benefit Administrators                      1141","Mercy Benefit Administrators                      1141",54]
["Mercy Health Plans",1244,"Mercy Health Plans                                1244","Mercy Health Plans                                1244",54]
["Meritain Health, Inc.",1392,"Meritain Health, Inc.                             1392","Meritain Health, Inc.                             1392",54]
["Metavante - BA",4994,"Metavante - BA                                    4994","Metavante - BA                                    4994",54]
["Metavante - BCBS",4992,"Metavante - BCBS                                  4992","Metavante - BCBS                                  4992",54]
["Metavante - Emerging",4993,"Metavante - Emerging                              4993","Metavante - Emerging                              4993",54]
["Metcare Health Plans, Inc",3306,"Metcare Health Plans, Inc                         3306","Metcare Health Plans, Inc                         3306",54]
["MetLife - Small Market Information",1263,{"$f":"A386&REPT(\" \",50 - LEN(A386))&B386","v":"MetLife - Small Market Information                1263"},"MetLife - Small Market Information                1263",54]
["Metlife Mexico, S.A.",4045,"Metlife Mexico, S.A.                              4045","Metlife Mexico, S.A.                              4045",{"$f":"LEN(D387)","v":54}]
["MH Net",3502,"MH Net                                            3502","MH Net                                            3502",54]
["Michael Reese Physicians",1266,"Michael Reese Physicians                          1266","Michael Reese Physicians                          1266",54]
["Michigan Conference of Teamsters-Welfare Fund",1269,"Michigan Conference of Teamsters-Welfare Fund     1269","Michigan Conference of Teamsters-Welfare Fund     1269",54]
["Michigan EducationSpecialized Services Association",1260,"Michigan EducationSpecialized Services Association1260","Michigan EducationSpecialized Services Association1260",54]
["Micro-Dyn Medical Systems, Inc",3784,"Micro-Dyn Medical Systems, Inc                    3784","Micro-Dyn Medical Systems, Inc                    3784",54]
["Mid-America Associates Inc.",1271,"Mid-America Associates Inc.                       1271","Mid-America Associates Inc.                       1271",54]
["Midwest Security Life Insurance Co.",1273,"Midwest Security Life Insurance Co.               1273","Midwest Security Life Insurance Co.               1273",54]
["Milliman Care Guidelines",3786,"Milliman Care Guidelines                          3786","Milliman Care Guidelines                          3786",54]
["Milliman Care Guidelines - National",5557,"Milliman Care Guidelines - National               5557","Milliman Care Guidelines - National               5557",54]
["Milliman Care Guidelines - Regional",5558,"Milliman Care Guidelines - Regional               5558","Milliman Care Guidelines - Regional               5558",54]
["Milliman Care Guidlines - EMERGING",4833,"Milliman Care Guidlines - EMERGING                4833","Milliman Care Guidlines - EMERGING                4833",54]
["Misc. Customer",2798,"Misc. Customer                                    2798","Misc. Customer                                    2798",54]
["Mississippi Public Entity Employee Benefit Service",1003,"Mississippi Public Entity Employee Benefit Service1003","Mississippi Public Entity Employee Benefit Service1003",54]
["Mississippi Select",3503,"Mississippi Select                                3503","Mississippi Select                                3503",54]
["Missoula County Employee Benefit",1279,"Missoula County Employee Benefit                  1279","Missoula County Employee Benefit                  1279",54]
["MMM Healthcare, Inc.",4326,"MMM Healthcare, Inc.                              4326","MMM Healthcare, Inc.                              4326",54]
["Molina Healthcare, Inc.",3474,"Molina Healthcare, Inc.                           3474","Molina Healthcare, Inc.                           3474",54]
["Molina Medicaid Solutions",3487,"Molina Medicaid Solutions                         3487","Molina Medicaid Solutions                         3487",54]
["Money Services, Inc.",5755,"Money Services, Inc.                              5755","Money Services, Inc.                              5755",54]
["Montefiore",3475,"Montefiore                                        3475","Montefiore                                        3475",54]
["Motion Picture Industry",3476,"Motion Picture Industry                           3476","Motion Picture Industry                           3476",54]
["Multiplan",1007,"Multiplan                                         1007","Multiplan                                         1007",54]
["Mutual Assurance Administrators",1012,"Mutual Assurance Administrators                   1012","Mutual Assurance Administrators                   1012",54]
["Mutual of America",5475,"Mutual of America                                 5475","Mutual of America                                 5475",54]
["Mutual of Omaha Insurance Co.",1015,"Mutual of Omaha Insurance Co.                     1015","Mutual of Omaha Insurance Co.                     1015",54]
["MVP Health Plan",1016,"MVP Health Plan                                   1016","MVP Health Plan                                   1016",54]
["National Care Network",2019,"National Care Network                             2019","National Care Network                             2019",54]
["National Health Benefits",1026,"National Health Benefits                          1026","National Health Benefits                          1026",54]
["National Health Insurance Co.",1029,"National Health Insurance Co.                     1029","National Health Insurance Co.                     1029",54]
["National Material LP",1033,"National Material LP                              1033","National Material LP                              1033",54]
["National Rural Electric Cooperative Association",1019,"National Rural Electric Cooperative Association   1019","National Rural Electric Cooperative Association   1019",54]
["NCAS",5444,"NCAS                                              5444","NCAS                                              5444",54]
["Neighborhood Health Partnership",3307,"Neighborhood Health Partnership                   3307","Neighborhood Health Partnership                   3307",54]
["Neighborhood Health Plan",1036,"Neighborhood Health Plan                          1036","Neighborhood Health Plan                          1036",54]
["Neighborhood Health Plan of RI",4348,"Neighborhood Health Plan of RI                    4348","Neighborhood Health Plan of RI                    4348",54]
["Nesika Health Group",1492,"Nesika Health Group                               1492","Nesika Health Group                               1492",54]
["Network Health",1037,"Network Health                                    1037","Network Health                                    1037",54]
["New West Health Services",1287,"New West Health Services                          1287","New West Health Services                          1287",54]
["Noridian Benefit Plan Administrators",1035,"Noridian Benefit Plan Administrators              1035","Noridian Benefit Plan Administrators              1035",54]
["North Broward Hospital District",1056,"North Broward Hospital District                   1056","North Broward Hospital District                   1056",54]
["North Texas Speciality Physicians GSA",4146,"North Texas Speciality Physicians GSA             4146","North Texas Speciality Physicians GSA             4146",54]
["Northern Arizona Regional Behavioral Health Author",5855,"Northern Arizona Regional Behavioral Health Author5855","Northern Arizona Regional Behavioral Health Author5855",54]
["Northwestern National Insurance Co.",1066,"Northwestern National Insurance Co.               1066","Northwestern National Insurance Co.               1066",54]
["NYSA-ILA Welfare Fund",1068,"NYSA-ILA Welfare Fund                             1068","NYSA-ILA Welfare Fund                             1068",54]
["ODS Companies",1081,"ODS Companies                                     1081","ODS Companies                                     1081",54]
["ODS Companies",2477,"ODS Companies                                     2477","ODS Companies                                     2477",54]
["OSF Health Plans",1093,"OSF Health Plans                                  1093","OSF Health Plans                                  1093",54]
["PacifiCare Health Systems",1105,"PacifiCare Health Systems                         1105","PacifiCare Health Systems                         1105",54]
["PacificSource Health Plans",2859,"PacificSource Health Plans                        2859","PacificSource Health Plans                        2859",54]
["Partners HealthCare System, Inc.",3020,"Partners HealthCare System, Inc.                  3020","Partners HealthCare System, Inc.                  3020",54]
["Partners National Health Plans of NC",3308,"Partners National Health Plans of NC              3308","Partners National Health Plans of NC              3308",54]
["Patrolmen's Benevolent Association",3478,"Patrolmen's Benevolent Association                3478","Patrolmen's Benevolent Association                3478",54]
["Peoples Health Network",3309,"Peoples Health Network                            3309","Peoples Health Network                            3309",54]
["Pequot Pharmaceutical Network",1154,"Pequot Pharmaceutical Network                     1154","Pequot Pharmaceutical Network                     1154",54]
["PHIA Group",3181,"PHIA Group                                        3181","PHIA Group                                        3181",54]
["Phoenix Health Plan, LLC",6035,"Phoenix Health Plan, LLC                          6035","Phoenix Health Plan, LLC                          6035",54]
["Physician Health Plans of Northern Indiana",3479,"Physician Health Plans of Northern Indiana        3479","Physician Health Plans of Northern Indiana        3479",54]
["Physician's Health Plan Shared Services, LLC",2698,"Physician's Health Plan Shared Services, LLC      2698","Physician's Health Plan Shared Services, LLC      2698",54]
["Physicians Care of California Inc.",5348,"Physicians Care of California Inc.                5348","Physicians Care of California Inc.                5348",54]
["Physicians Health Plan of South Michigan",4370,"Physicians Health Plan of South Michigan          4370","Physicians Health Plan of South Michigan          4370",54]
["Pilgrim's Pride Corporation",1315,"Pilgrim's Pride Corporation                       1315","Pilgrim's Pride Corporation                       1315",54]
["Pima Health Systems",3480,"Pima Health Systems                               3480","Pima Health Systems                               3480",54]
["Pioneer Management Systems",1178,{"$f":"A450&REPT(\" \",50 - LEN(A450))&B450","v":"Pioneer Management Systems                        1178"},"Pioneer Management Systems                        1178",54]
["Pittman and Associates",1207,"Pittman and Associates                            1207","Pittman and Associates                            1207",{"$f":"LEN(D451)","v":54}]
["Plan Handlers",1397,"Plan Handlers                                     1397","Plan Handlers                                     1397",54]
["Plan Vista Solutions",1214,"Plan Vista Solutions                              1214","Plan Vista Solutions                              1214",54]
["Planned Administrators Inc.",1218,"Planned Administrators Inc.                       1218","Planned Administrators Inc.                       1218",54]
["POMCO",1231,"POMCO                                             1231","POMCO                                             1231",54]
["Population Health Management",6018,"Population Health Management                      6018","Population Health Management                      6018",54]
["ppoNext",1238,"ppoNext                                           1238","ppoNext                                           1238",54]
["Preferred Benefit Administrators Inc.",5335,"Preferred Benefit Administrators Inc.             5335","Preferred Benefit Administrators Inc.             5335",54]
["Preferred Care Partners",2617,"Preferred Care Partners                           2617","Preferred Care Partners                           2617",54]
["Preferred Health Systems",1246,"Preferred Health Systems                          1246","Preferred Health Systems                          1246",54]
["Preferred Medical Claims Solutions",2157,"Preferred Medical Claims Solutions                2157","Preferred Medical Claims Solutions                2157",54]
["Preferred Medical Plan, Inc.",5359,"Preferred Medical Plan, Inc.                      5359","Preferred Medical Plan, Inc.                      5359",54]
["Preferred One",1334,"Preferred One                                     1334","Preferred One                                     1334",54]
["Premera Blue Cross",1337,"Premera Blue Cross                                1337","Premera Blue Cross                                1337",54]
["Premier Healthcare Exchange, Inc.",5292,"Premier Healthcare Exchange, Inc.                 5292","Premier Healthcare Exchange, Inc.                 5292",54]
["Presbyterian Health Plan",1345,"Presbyterian Health Plan                          1345","Presbyterian Health Plan                          1345",54]
["PriMed Management Consulting Services, Inc.",5369,"PriMed Management Consulting Services, Inc.       5369","PriMed Management Consulting Services, Inc.       5369",54]
["Principal Life Insurance",4008,"Principal Life Insurance                          4008","Principal Life Insurance                          4008",54]
["Priority Health",1352,"Priority Health                                   1352","Priority Health                                   1352",54]
["Prism Network Inc.",1356,"Prism Network Inc.                                1356","Prism Network Inc.                                1356",54]
["Private Heathcare Systems",1836,"Private Heathcare Systems                         1836","Private Heathcare Systems                         1836",54]
["Professional Claim Management",1360,"Professional Claim Management                     1360","Professional Claim Management                     1360",54]
["Prosalud HMO Corp",3723,"Prosalud HMO Corp                                 3723","Prosalud HMO Corp                                 3723",54]
["Protective Life Insurance Co.",1363,"Protective Life Insurance Co.                     1363","Protective Life Insurance Co.                     1363",54]
["Providence Health Plans",1376,"Providence Health Plans                           1376","Providence Health Plans                           1376",54]
["QCSI",3522,"QCSI                                              3522","QCSI                                              3522",54]
["QualChoice Health Plan",3311,"QualChoice Health Plan                            3311","QualChoice Health Plan                            3311",54]
["QualChoice of Arkansas",1380,"QualChoice of Arkansas                            1380","QualChoice of Arkansas                            1380",54]
["Rehabilitation Hospital of the Cap & Islands",1419,"Rehabilitation Hospital of the Cap & Islands      1419","Rehabilitation Hospital of the Cap & Islands      1419",54]
["Religious Order of Jehovah's Witnesses",5895,"Religious Order of Jehovah's Witnesses            5895","Religious Order of Jehovah's Witnesses            5895",54]
["Resolve Health Plan Administrators, LLC.",5445,"Resolve Health Plan Administrators, LLC.          5445","Resolve Health Plan Administrators, LLC.          5445",54]
["ResourceOne",1095,"ResourceOne                                       1095","ResourceOne                                       1095",54]
["Resurrection Health Preferred",1425,"Resurrection Health Preferred                     1425","Resurrection Health Preferred                     1425",54]
["Reynolds & Reynolds Co.",1401,"Reynolds & Reynolds Co.                           1401","Reynolds & Reynolds Co.                           1401",54]
["RightCHOICE Benefit Adminstrators, Inc.",4065,"RightCHOICE Benefit Adminstrators, Inc.           4065","RightCHOICE Benefit Adminstrators, Inc.           4065",54]
["RMS",3903,"RMS                                               3903","RMS                                               3903",54]
["Rocky Mountain Health Plans",1431,"Rocky Mountain Health Plans                       1431","Rocky Mountain Health Plans                       1431",54]
["RPM, Inc.",2899,"RPM, Inc.                                         2899","RPM, Inc.                                         2899",54]
["Sagamore Health Network",1439,"Sagamore Health Network                           1439","Sagamore Health Network                           1439",54]
["Sales Allowance",1777,"Sales Allowance                                   1777","Sales Allowance                                   1777",54]
["Salud Dorada con Medicare",3563,"Salud Dorada con Medicare                         3563","Salud Dorada con Medicare                         3563",54]
["Samaritan Health Services",2137,"Samaritan Health Services                         2137","Samaritan Health Services                         2137",54]
["San Francisco Health Plan",4671,"San Francisco Health Plan                         4671","San Francisco Health Plan                         4671",54]
["Sanovia Corporation - Regional",5133,"Sanovia Corporation - Regional                    5133","Sanovia Corporation - Regional                    5133",54]
["Schaller Anderson LLC",3482,"Schaller Anderson LLC                             3482","Schaller Anderson LLC                             3482",54]
["Seafarers Vacation Plan",1389,"Seafarers Vacation Plan                           1389","Seafarers Vacation Plan                           1389",54]
["Security Health Plan of Wisconsin, Inc.",4672,"Security Health Plan of Wisconsin, Inc.           4672","Security Health Plan of Wisconsin, Inc.           4672",54]
["Select Administrative Services",3789,"Select Administrative Services                    3789","Select Administrative Services                    3789",54]
["Select Benefit Administrators",1417,"Select Benefit Administrators                     1417","Select Benefit Administrators                     1417",54]
["SelectHealth",1328,"SelectHealth                                      1328","SelectHealth                                      1328",54]
["Self-Insured Plans, LLC",1472,"Self-Insured Plans, LLC                           1472","Self-Insured Plans, LLC                           1472",54]
["Senior Whole Health",6235,"Senior Whole Health                               6235","Senior Whole Health                               6235",54]
["Sheffield, Olson & McQueen",1474,"Sheffield, Olson & McQueen                        1474","Sheffield, Olson & McQueen                        1474",54]
["SHPS Inc.",2920,"SHPS Inc.                                         2920","SHPS Inc.                                         2920",54]
["Sierra Health Services",1475,"Sierra Health Services                            1475","Sierra Health Services                            1475",54]
["Silverback, LLC",5512,"Silverback, LLC                                   5512","Silverback, LLC                                   5512",54]
["Simply Healthcare Plans",4872,"Simply Healthcare Plans                           4872","Simply Healthcare Plans                           4872",54]
["Southern Benefit Services",2597,"Southern Benefit Services                         2597","Southern Benefit Services                         2597",54]
["Southern National Life Insurance Co.",1083,"Southern National Life Insurance Co.              1083","Southern National Life Insurance Co.              1083",54]
["Special Agents Mutual Benefit",1092,"Special Agents Mutual Benefit                     1092","Special Agents Mutual Benefit                     1092",54]
["Spectrum Administrators, Inc.",1114,"Spectrum Administrators, Inc.                     1114","Spectrum Administrators, Inc.                     1114",54]
["Spraying Systems Company",4286,"Spraying Systems Company                          4286","Spraying Systems Company                          4286",54]
["St. Barnabas Hospital/Partners",1126,"St. Barnabas Hospital/Partners                    1126","St. Barnabas Hospital/Partners                    1126",54]
["St. Mary's HealthFirst",4346,{"$f":"A514&REPT(\" \",50 - LEN(A514))&B514","v":"St. Mary's HealthFirst                            4346"},"St. Mary's HealthFirst                            4346",54]
["St. Therese Physicians Association",1210,"St. Therese Physicians Association                1210","St. Therese Physicians Association                1210",{"$f":"LEN(D515)","v":54}]
["Standard Insurance Co.",1212,"Standard Insurance Co.                            1212","Standard Insurance Co.                            1212",54]
["Standard Life and Casualty Insurance Company",5446,"Standard Life and Casualty Insurance Company      5446","Standard Life and Casualty Insurance Company      5446",54]
["State of Georgia",1224,"State of Georgia                                  1224","State of Georgia                                  1224",54]
["Stewart C. Miller & Co. Inc.",1236,"Stewart C. Miller & Co. Inc.                      1236","Stewart C. Miller & Co. Inc.                      1236",54]
["Stirling and Stirling Benefits",5453,"Stirling and Stirling Benefits                    5453","Stirling and Stirling Benefits                    5453",54]
["StrataCare, LLC",5995,"StrataCare, LLC                                   5995","StrataCare, LLC                                   5995",54]
["Stryker Medical",6055,"Stryker Medical                                   6055","Stryker Medical                                   6055",54]
["Summit America Insurance Services",1490,"Summit America Insurance Services                 1490","Summit America Insurance Services                 1490",54]
["Sun Health Medisun",3313,"Sun Health Medisun                                3313","Sun Health Medisun                                3313",54]
["SunLife",1402,"SunLife                                           1402","SunLife                                           1402",54]
["Superior Vision Services",5452,"Superior Vision Services                          5452","Superior Vision Services                          5452",54]
["Sybase",2638,"Sybase                                            2638","Sybase                                            2638",54]
["Sybase - BCBS",4792,"Sybase - BCBS                                     4792","Sybase - BCBS                                     4792",54]
["Synertech",3483,"Synertech                                         3483","Synertech                                         3483",54]
["TakeCare Insurance Company",2657,"TakeCare Insurance Company                        2657","TakeCare Insurance Company                        2657",54]
["Tarrant Health Services LLC.",1321,"Tarrant Health Services LLC.                      1321","Tarrant Health Services LLC.                      1321",54]
["TC3 Health, LLC",2940,"TC3 Health, LLC                                   2940","TC3 Health, LLC                                   2940",54]
["Teachers Health Trust",3484,"Teachers Health Trust                             3484","Teachers Health Trust                             3484",54]
["Teladoc, Inc.",4611,"Teladoc, Inc.                                     4611","Teladoc, Inc.                                     4611",54]
["Teladoc, Inc. - BA",4864,"Teladoc, Inc. - BA                                4864","Teladoc, Inc. - BA                                4864",54]
["Tennessee Rural Health",3743,"Tennessee Rural Health                            3743","Tennessee Rural Health                            3743",54]
["Texas Children's Health Plan Inc",3485,"Texas Children's Health Plan Inc                  3485","Texas Children's Health Plan Inc                  3485",54]
["The Trizetto Group, Inc.",1556,"The Trizetto Group, Inc.                          1556","The Trizetto Group, Inc.                          1556",54]
["Thermo Electron Corporation",3314,"Thermo Electron Corporation                       3314","Thermo Electron Corporation                       3314",54]
["Third Party Commissions",1778,"Third Party Commissions                           1778","Third Party Commissions                           1778",54]
["Thomas Cooper & Company, Inc.",1412,"Thomas Cooper & Company, Inc.                     1412","Thomas Cooper & Company, Inc.                     1412",54]
["Three Rivers Provider Network",5012,"Three Rivers Provider Network                     5012","Three Rivers Provider Network                     5012",54]
["TMG Healthcare Inc.",1424,"TMG Healthcare Inc.                               1424","TMG Healthcare Inc.                               1424",54]
["TML Group Benefits Risk Pool",1426,"TML Group Benefits Risk Pool                      1426","TML Group Benefits Risk Pool                      1426",54]
["Topaz Shared Services LLC",5975,"Topaz Shared Services LLC                         5975","Topaz Shared Services LLC                         5975",54]
["Touchstone Health Partnership",2036,"Touchstone Health Partnership                     2036","Touchstone Health Partnership                     2036",54]
["Tower Life Insurance Company",1429,"Tower Life Insurance Company                      1429","Tower Life Insurance Company                      1429",54]
["TPA Benefits, Inc.",4592,"TPA Benefits, Inc.                                4592","TPA Benefits, Inc.                                4592",54]
["TR Paul",1113,"TR Paul                                           1113","TR Paul                                           1113",54]
["Triple-S Inc",3489,"Triple-S Inc                                      3489","Triple-S Inc                                      3489",54]
["TriServ Alliance, LLC",4306,"TriServ Alliance, LLC                             4306","TriServ Alliance, LLC                             4306",54]
["Tristar Insurance Group",5352,"Tristar Insurance Group                           5352","Tristar Insurance Group                           5352",54]
["TriWest Healthcare Alliance",3315,"TriWest Healthcare Alliance                       3315","TriWest Healthcare Alliance                       3315",54]
["Trustmark Insurance Co.",1432,"Trustmark Insurance Co.                           1432","Trustmark Insurance Co.                           1432",54]
["Tufts Associated Health Plans, Inc.",3603,"Tufts Associated Health Plans, Inc.               3603","Tufts Associated Health Plans, Inc.               3603",54]
["Tufts Health Plan",1438,"Tufts Health Plan                                 1438","Tufts Health Plan                                 1438",54]
["UCare Minnesota",1440,"UCare Minnesota                                   1440","UCare Minnesota                                   1440",54]
["UCLA Health System",4453,"UCLA Health System                                4453","UCLA Health System                                4453",54]
["UHP",3316,"UHP                                               3316","UHP                                               3316",54]
["Underwriters Services Corporation",5492,"Underwriters Services Corporation                 5492","Underwriters Services Corporation                 5492",54]
["Unilens",1552,"Unilens                                           1552","Unilens                                           1552",54]
["Unison Administrative Services, LLC.",1421,"Unison Administrative Services, LLC.              1421","Unison Administrative Services, LLC.              1421",54]
["UNITE HERE HEALTH",1278,"UNITE HERE HEALTH                                 1278","UNITE HERE HEALTH                                 1278",54]
["United Healthcare Plan of River Valley, Inc., fka",1353,"United Healthcare Plan of River Valley, Inc., fka 1353","United Healthcare Plan of River Valley, Inc., fka 1353",54]
["United Healthcare Services",1466,"United Healthcare Services                        1466","United Healthcare Services                        1466",54]
["United Medical Resources",1004,"United Medical Resources                          1004","United Medical Resources                          1004",54]
["United Resource Network",4086,"United Resource Network                           4086","United Resource Network                           4086",54]
["Univera Healthcare - WNY",1022,"Univera Healthcare - WNY                          1022","Univera Healthcare - WNY                          1022",54]
["Universal American Corp.",2517,"Universal American Corp.                          2517","Universal American Corp.                          2517",54]
["Universal Health Care Group, Inc.",3317,"Universal Health Care Group, Inc.                 3317","Universal Health Care Group, Inc.                 3317",54]
["University Health Alliance",1032,"University Health Alliance                        1032","University Health Alliance                        1032",54]
["University Physicians Healthcare",3943,"University Physicians Healthcare                  3943","University Physicians Healthcare                  3943",54]
["UnumProvident Corporation",1796,"UnumProvident Corporation                         1796","UnumProvident Corporation                         1796",54]
["UPMC Health Plan",3343,"UPMC Health Plan                                  3343","UPMC Health Plan                                  3343",54]
["Upper Peninsula Health Plan",1053,"Upper Peninsula Health Plan                       1053","Upper Peninsula Health Plan                       1053",54]
["US Imaging Network",3923,"US Imaging Network                                3923","US Imaging Network                                3923",54]
["USAA Life Insurance Co.",1069,"USAA Life Insurance Co.                           1069","USAA Life Insurance Co.                           1069",54]
["ValueOptions",4126,{"$f":"A578&REPT(\" \",50 - LEN(A578))&B578","v":"ValueOptions                                      4126"},"ValueOptions                                      4126",54]
["Vantage Health Plan",3318,"Vantage Health Plan                               3318","Vantage Health Plan                               3318",{"$f":"LEN(D579)","v":54}]
["Vista Health Plan",3319,"Vista Health Plan                                 3319","Vista Health Plan                                 3319",54]
["Vitamedica, S.A. de C.V.",1413,"Vitamedica, S.A. de C.V.                          1413","Vitamedica, S.A. de C.V.                          1413",54]
["VNS Choice",4349,"VNS Choice                                        4349","VNS Choice                                        4349",54]
["Volusia Health Network",4367,"Volusia Health Network                            4367","Volusia Health Network                            4367",54]
["WEA Trust",3488,"WEA Trust                                         3488","WEA Trust                                         3488",54]
["Wellcare",3402,"Wellcare                                          3402","Wellcare                                          3402",54]
["Wellmark, Inc.",6155,"Wellmark, Inc.                                    6155","Wellmark, Inc.                                    6155",54]
["Wellpoint",1460,"Wellpoint                                         1460","Wellpoint                                         1460",54]
["Wellpoint",2317,"Wellpoint                                         2317","Wellpoint                                         2317",54]
["Wells Fargo Third Party Administrators, Inc.",1357,"Wells Fargo Third Party Administrators, Inc.      1357","Wells Fargo Third Party Administrators, Inc.      1357",54]
["Western & Southern Life Inc.",1408,"Western & Southern Life Inc.                      1408","Western & Southern Life Inc.                      1408",54]
["Western Health Advantage",1304,"Western Health Advantage                          1304","Western Health Advantage                          1304",54]
["Western Health, Inc.",1398,"Western Health, Inc.                              1398","Western Health, Inc.                              1398",54]
["Windsor Management Services",3403,"Windsor Management Services                       3403","Windsor Management Services                       3403",54]
["Wisconsin Physicians Service Insurance Corporation",4832,"Wisconsin Physicians Service Insurance Corporation4832","Wisconsin Physicians Service Insurance Corporation4832",54]
["WMI Mutual Insurance Company",1306,"WMI Mutual Insurance Company                      1306","WMI Mutual Insurance Company                      1306",54]
["WPMI, LLC",3422,"WPMI, LLC                                         3422","WPMI, LLC                                         3422",54]
["XL Health",4267,"XL Health                                         4267","XL Health                                         4267",54]
["Yakima Valley Farm Workers Clinic",5448,"Yakima Valley Farm Workers Clinic                 5448","Yakima Valley Farm Workers Clinic                 5448",54]
["Zenith Administrators Inc",3121,"Zenith Administrators Inc                         3121","Zenith Administrators Inc                         3121",54]

{"sheet":"Sheet3","index":2,"n_rows":0,"n_cols":0,"rows_kept":0,"cut":false,"hidden":false,"merged":[]}